Cogmind - Beta 17.1 @@@ ROGUE MODE // 2026.09.21 @ 03:09:33 Player: cptwinky Result: Escaped! Performance ------------- Evolutions (9) 4500 Regions Visited (41) 8200 Robots Destroyed (509) 2545 Value Destroyed (25632) 25632 Prototype IDs (100) 2000 Alien Tech Used (3) 600 Bonus (20174) 20174 TOTAL SCORE: 63651 Bonus ------- High Alert Combat Kills 2843 Follower Combat Kills 6517 Awakened Behemoth Slayer 1000 Entered Garrisons 1000 Network Hubs Disabled 400 Met Imprinter 300 Acquired ECA 300 Met Zhirov 300 Met Warlord at Base 500 MAIN.C Attacked Warlord 500 Warlord Defense Kills 1328 Met R17 at Cetus 500 Met R17 at Research 2000 Win 3000 Friendly Fire -314 Cogmind --------- Core Integrity 1545/1600 Matter 300/300 Energy 796/820 System Corruption 5% Temperature Cool (11) Movement Treading (230) Ox1 Location To Epsilon Eridani Parts ------- > --- POWER (3) -------- Heavy Antimatter Reactor Heavy Antimatter Reactor Heavy Antimatter Reactor > --- PROPULSION (6) --- Advanced Heavy Treads Biometal Heavy Treads High-density Centrium Heavy Treads > --- UTILITY (13) ----- Advanced Cooling System Huge Storage Unit Graphene Brace Experimental EM Disruption Field Advanced Remote Force Field Wardrone Bay (1/1) > --- WEAPON (4) ------- Enhanced Nova Cannon Advanced KE Penetrator Advanced KE Penetrator Helical Railgun > --- INVENTORY (25) --- Improved Quantum Reactor Improved Quantum Reactor Biometal Heavy Treads Experimental Energy Well (600) Advanced Matter Compressor (400) Makeshift Sensor Array Advanced Transmission Jammer SHELL Armor Improved Component Analysis Suite Long-range Tractor Beam Hacking Drone Bay (1/1) HERF Cannon Improved Potential Cannon KE Penetrator Ragnarok Missile Launcher Advanced Remote Datajack CR-A16's Behemoth Slayer Peak State ------------ > --- POWER ------------ Heavy Antimatter Reactor Heavy Antimatter Reactor Heavy Antimatter Reactor > --- PROPULSION ------- Advanced Heavy Treads Biometal Heavy Treads High-density Centrium Heavy Treads > --- UTILITY ---------- Advanced Cooling System Huge Storage Unit Graphene Brace Experimental EM Disruption Field Advanced Remote Force Field Wardrone Bay > --- WEAPON ----------- Enhanced Nova Cannon Advanced KE Penetrator Advanced KE Penetrator Helical Railgun > --- INVENTORY -------- Improved Quantum Reactor Improved Quantum Reactor Biometal Heavy Treads Experimental Energy Well Advanced Matter Compressor Makeshift Sensor Array Advanced Transmission Jammer SHELL Armor Long-range Tractor Beam Hacking Drone Bay HERF Cannon Improved Potential Cannon KE Penetrator Ragnarok Missile Launcher Advanced Remote Datajack CR-A16's Behemoth Slayer [Rating: 265] Favorites ----------- Power Heavy Ion Engine Engine Heavy Ion Engine Power Core Reinforced Fission Core Reactor Heavy Antimatter Reactor Propulsion Light Treads Treads Light Treads Hover Unit Cooled Gravmag System Utility Huge Storage Unit Device Makeshift Sensor Array Storage Huge Storage Unit Processor Advanced Targeting Computer Hackware Experimental Hacking Suite Protection Improved Medium Armor Plating Weapon Enhanced Autogun Energy Gun Improved Medium Laser Energy Cannon HERF Cannon Ballistic Gun Enhanced Autogun Ballistic Cannon Heavy Hardcell Cannon Launcher Heavy Missile Launcher Special Weapon Plasma Cutter Impact Weapon Makeshift Hammer Slashing Weapon Makeshift Axe Piercing Weapon CR-A16's Behemoth Slayer Special Melee Weapon Advanced Datajack Build | -11 -10 -10 -9 -9 -9 -8 -8 -8 -8 -8 -8 -8 -8 -7 -7 -7 -7 -7 -7 -6 -6 -6 -6 -6 -6 -5 -5 -5 -5 -4 -4 -4 -4 -4 -4 -4 -3 -3 -3 -2 -1 ------- Run | Yrd Mat Min Mat Min Exi Min Mat Gar Mat Gar Mat Gar Mat Fac Gar Fac Low Low Zio Pro Fac Ext Cet Arc Hub Fac Upp Upp War Pro Fac Gar Fac Upp Upp Zhi Pro Res Tes Res Acc Slots Evolved 18 | . . . 2 . . . 2 . . . . . . 2 . . . . . . 2 . . . . 2 . . . . 2 . . . . . . 2 . 2 2 Power 1 | . . . . . . . . . . . . . . . . . . . . . . . . . . 1 . . . . . . . . . . . . . . . Propulsion 4 | . . . 1 . . . . . . . . . . 1 . . . . . . . . . . . 1 . . . . . . . . . . . 1 . . . Utility 11 | . . . 1 . . . 1 . . . . . . 1 . . . . . . 1 . . . . . . . . . 2 . . . . . . 1 . 2 2 Weapon 2 | . . . . . . . 1 . . . . . . . . . . . . . 1 . . . . . . . . . . . . . . . . . . . . Parts Attached 272 | 6 5 1 17 2 1 . 20 3 14 11 7 4 8 5 10 3 . 2 8 4 14 11 10 7 3 8 2 4 16 7 2 1 3 6 . 6 1 4 19 6 11 Power 31 | 1 1 1 2 . . . 1 . 1 . 1 . 1 . . 1 . . . . 1 1 2 . . 2 . 2 2 . . . . 1 . 3 . . 5 1 1 Engine 11 | 1 1 . 2 . . . 1 . 1 . 1 . 1 . . 1 . . . . 1 . 1 . . . . . . . . . . . . . . . . . . Core 5 | . . 1 . . . . . . . . . . . . . . . . . . . . . . . 1 . 1 . . . . . 1 . 1 . . . . . Reactor 15 | . . . . . . . . . . . . . . . . . . . . . . 1 1 . . 1 . 1 2 . . . . . . 2 . . 5 1 1 Propulsion 73 | 2 . . 8 . . . 8 2 6 5 2 . 4 1 6 . . . 1 1 4 6 4 . . 1 . 1 3 2 . . . . . 1 . 2 1 2 . Treads 72 | 2 . . 8 . . . 8 2 6 5 2 . 4 1 6 . . . 1 1 4 6 4 . . 1 . 1 3 2 . . . . . . . 2 1 2 . Leg . | . . . . . . . . . . . . . . . . . . . . . . . . . . . . . . . . . . . . . . . . . . Wheel . | . . . . . . . . . . . . . . . . . . . . . . . . . . . . . . . . . . . . . . . . . . Hover 1 | . . . . . . . . . . . . . . . . . . . . . . . . . . . . . . . . . . . . 1 . . . . . Flight . | . . . . . . . . . . . . . . . . . . . . . . . . . . . . . . . . . . . . . . . . . . Utility 93 | 1 3 . 3 . 1 . 4 1 4 2 4 3 1 4 2 1 . . 2 . 7 1 2 3 2 4 1 . 5 1 2 . 3 2 . 2 . 2 10 2 8 Device 38 | . . . . . . . 1 . . 1 . 2 1 1 2 1 . . 2 . 3 . . 2 1 2 1 . 3 1 . . 1 . . 1 . 1 4 1 6 Storage 9 | 1 1 . . . 1 . . . . . . . . . . . . . . . 1 . . . . . . . . . . . 1 . . . . . 3 1 . Processor 13 | . 1 . 2 . . . 1 . 1 . 1 1 . 1 . . . . . . 1 . . . . 1 . . 1 . . . 1 . . . . 1 . . . Hackware 8 | . . . . . . . . . 2 . 1 . . 1 . . . . . . 1 . . . . . . . . . 1 . . . . . . . . . 2 Protection 25 | . 1 . 1 . . . 2 1 1 1 2 . . 1 . . . . . . 1 1 2 1 1 1 . . 1 . 1 . . 2 . 1 . . 3 . . Artifact . | . . . . . . . . . . . . . . . . . . . . . . . . . . . . . . . . . . . . . . . . . . Weapon 75 | 2 1 . 4 2 . . 7 . 3 4 . 1 2 . 2 1 . 2 5 3 2 3 2 4 1 1 1 1 6 4 . 1 . 3 . . 1 . 3 1 2 Energy Gun 3 | . . . 1 . . . . . . . . . . . . . . . 1 . . . 1 . . . . . . . . . . . . . . . . . . Energy Cannon 7 | . . . . . . . . . . . . . . . 1 . . . . . . . . . . 1 . . 2 . . 1 . . . . . . 1 . 1 Ballistic Gun 39 | 2 . . 3 1 . . 4 . 3 2 . 1 2 . . 1 . 1 1 1 2 1 1 3 1 . 1 1 1 . . . . 2 . . 1 . 2 1 . Ballistic Cannon 4 | . . . . . . . . . . . . . . . . . . . . . . . . . . . . . . 3 . . . 1 . . . . . . . Launcher 6 | . . . . . . . 2 . . 1 . . . . 1 . . . . 1 . . . . . . . . . 1 . . . . . . . . . . . Special Weapon 8 | . 1 . . . . . . . . 1 . . . . . . . . 1 . . 1 . . . . . . 3 . . . . . . . . . . . 1 Impact Weapon 1 | . . . . . . . . . . . . . . . . . . 1 . . . . . . . . . . . . . . . . . . . . . . . Slashing Weapon 1 | . . . . . . . 1 . . . . . . . . . . . . . . . . . . . . . . . . . . . . . . . . . . Piercing Weapon 3 | . . . . . . . . . . . . . . . . . . . 1 1 . 1 . . . . . . . . . . . . . . . . . . . Special Melee Weapon 3 | . . . . 1 . . . . . . . . . . . . . . 1 . . . . 1 . . . . . . . . . . . . . . . . . Unidentified Prototypes 45 | . . . 2 . . . . . . . . . . . . . . . 3 . . 1 4 . 1 2 . . 7 7 . . 1 1 . 4 . 1 10 1 . Corrupted Parts 5 | . . . . . . . . . . . . . . . . . . . . . . . 1 1 2 . . 1 . . . . . . . . . . . . . System Corruption 31 | . . . . . . . . . . . . . . . . . . . . . . . 9 10 8 . . 4 . . . . . . . . . . . . . Parts Lost 14 | . . . . . . . 2 . 1 2 1 3 . . . . . . . 1 . 3 . . . . . . . . . . . . . . . . 1 . . Power 1 | . . . . . . . 1 . . . . . . . . . . . . . . . . . . . . . . . . . . . . . . . . . . Propulsion 1 | . . . . . . . . . . 1 . . . . . . . . . . . . . . . . . . . . . . . . . . . . . . . Utility 9 | . . . . . . . 1 . 1 1 1 2 . . . . . . . . . 2 . . . . . . . . . . . . . . . . 1 . . Weapon 3 | . . . . . . . . . . . . 1 . . . . . . . 1 . 1 . . . . . . . . . . . . . . . . . . . Highest Loss Streak 2 | . . . . . . . 1 . 1 2 1 2 . . . . . . . 1 . 1 . . . . . . . . . . . . . . . . 1 . . To Critical Strikes 1 | . . . . . . . . . . . . . . . . . . . . 1 . . . . . . . . . . . . . . . . . . . . . Average Backups 21 | 3 9 12 14 15 15 16 23 25 24 24 24 24 24 24 24 24 24 25 24 24 24 24 23 23 23 23 23 23 19 15 15 16 17 16 16 16 15 15 16 15 16 Power 1 | . 1 1 1 1 1 2 2 2 2 2 1 1 1 1 1 . 1 1 1 1 1 1 1 2 2 1 1 1 . . . 1 2 1 2 1 . . . 1 2 Propulsion 2 | 1 3 4 3 3 3 3 5 4 3 3 4 4 4 4 4 4 4 4 3 3 4 5 3 3 3 2 2 2 . . 1 1 1 1 1 1 . 1 . . 1 Utility 8 | . 1 3 3 4 4 5 5 8 9 8 7 7 7 7 8 8 8 8 9 10 9 9 10 9 8 9 11 10 10 10 10 10 10 9 9 9 10 9 9 7 7 Weapon 6 | 1 2 3 5 6 5 5 8 9 7 8 9 9 9 9 9 9 9 10 9 8 6 6 6 7 8 7 7 7 7 4 4 4 4 3 4 4 4 4 4 4 5 Tool/Special . | . . . . . . . . . . . . . . . . . . . . . . . . . . . . . . . . . . . . . . . . . . Unused Backups 54 | . 2 . 5 . 1 1 5 . 5 3 . 1 1 . . 1 . . 4 . 3 1 4 . . . 1 1 . 2 . 1 . 1 . . . 1 3 3 4 Power 12 | . . . 1 . . 1 . . . . . . 1 . . . . . . . 2 1 1 . . . . . . . . . . 1 . . . . 1 1 2 Propulsion 9 | . 1 . 2 . . . 1 . 3 . . . . . . . . . . . . . . . . . . . . . . . . . . . . . . 1 1 Utility 13 | . . . . . 1 . 1 . . 1 . 1 . . . . . . 2 . 1 . 2 . . . . . . . . 1 . . . . . 1 2 . . Weapon 18 | . 1 . 2 . . . 3 . 2 2 . . . . . 1 . . 2 . . . 1 . . . . 1 . 2 . . . . . . . . . . 1 Tool/Special 2 | . . . . . . . . . . . . . . . . . . . . . . . . . . . 1 . . . . . . . . . . . . 1 . Average Slot Usage (%) 92 | . 98 100 99 100 100 100 99 100 96 96 100 99 100 99 100 100 100 100 99 100 99 99 97 89 93 92 88 88 84 77 73 73 72 77 85 66 90 88 84 78 71 Engine 4 | . 14 4 9 11 11 11 9 9 9 9 9 9 9 7 7 7 7 7 7 7 6 3 . . . . . . . . . . . . . . . . . . . Core 1 | . . 9 1 . . . . . . . . . . . . . . . . . . . . . . 1 5 5 3 . . . . 3 5 5 5 4 2 . . Reactor 2 | . . . . . . . . . . . . . . . . . . . . . . 2 5 6 6 8 5 5 5 5 5 5 5 5 5 6 10 9 10 12 11 Treads 23 | . 28 28 33 33 33 33 27 27 27 27 27 27 27 30 30 30 30 30 30 30 26 26 24 20 20 21 17 17 17 17 15 15 15 15 15 15 15 16 15 12 11 Device 6 | . . . . . . . 9 9 4 5 8 2 . 2 3 2 5 6 6 5 7 5 6 7 6 9 5 5 4 5 8 5 5 5 5 5 10 11 9 15 20 Storage 6 | . 14 14 11 11 11 11 9 9 9 9 9 9 9 7 7 7 7 7 7 7 6 6 6 6 6 5 5 5 5 5 5 5 5 5 5 5 5 4 4 4 3 Processor 14 | . 4 . 10 11 11 11 9 9 9 9 9 9 18 22 23 23 23 23 23 23 20 14 13 13 13 11 17 17 17 17 15 15 15 15 15 15 15 13 13 12 6 Protection 6 | . 8 14 10 11 11 11 8 9 8 9 9 15 9 2 3 4 1 . . 1 4 11 13 8 13 6 5 5 5 5 5 5 4 6 9 8 5 5 4 4 1 Ballistic Gun 20 | . 28 28 21 21 22 22 26 21 26 26 26 24 26 22 20 21 21 22 22 22 25 24 26 25 25 21 22 22 16 11 10 6 9 11 15 . 16 17 17 16 13 Peak Build Rating 265 | 6 8 10 19 19 21 21 35 33 36 37 38 38 38 45 43 47 47 46 54 53 68 80 106 112 116 125 119 119 139 154 161 164 165 169 168 159 168 187 198 211 265 Average Rating 86 | 5 7 9 15 18 19 20 28 33 34 36 37 37 37 42 41 43 45 45 50 50 63 73 90 106 112 120 118 116 121 147 157 160 162 163 162 132 157 181 183 207 236 On Entrance 82 | . 6 8 10 18 19 21 21 33 33 35 37 37 38 38 42 42 41 41 46 49 49 66 77 106 112 110 115 116 111 134 150 158 163 163 163 162 159 163 182 198 206 Avg Prop Armor Cover (%) . | . . . . . . . . . . . . . . . . . . . . . . . . . . . . . . . . . . . . . . . . . . Naked Turns . | . . . . . . . . . . . . . . . . . . . . . . . . . . . . . . . . . . . . . . . . . . Heaviest Build 238 | 12 28 30 36 36 96 96 104 104 114 114 111 106 104 104 109 109 112 106 106 111 123 132 138 141 145 165 143 150 160 171 177 182 179 186 184 188 185 183 194 196 238 Greatest Support 270 | 40 40 40 63 63 63 63 65 60 60 60 60 60 60 80 80 80 80 80 90 90 100 120 140 140 140 180 180 180 180 207 207 207 207 207 207 207 207 240 270 270 235 Greatest Overweight (x) 1 | . . . . . 1 1 1 1 1 1 1 1 1 1 1 1 1 1 1 1 1 1 1 1 1 1 . . . . . . . . . . . . . . 1 Average Overweight (x) . | . . . . . . 1 1 1 1 1 1 1 1 1 1 1 1 1 1 1 1 . . . . . . . . . . . . . . . . . . . . Largest Inventory Capacity 25 | 8 15 15 15 15 25 25 25 25 25 25 25 25 25 25 25 25 25 25 25 25 25 25 25 25 25 25 25 25 25 25 25 25 25 25 25 25 25 25 25 25 25 Average Capacity 24 | 7 12 15 15 15 18 25 25 25 25 25 25 25 25 25 25 25 25 25 25 25 25 25 25 25 25 25 25 25 25 25 25 25 25 25 25 25 25 25 25 25 25 Most Carried 25 | 7 12 13 15 15 16 17 25 25 25 25 25 25 25 25 25 25 25 25 25 25 25 25 25 25 25 25 25 25 25 25 23 25 25 25 24 25 25 25 25 25 25 Average Carried 23 | 3 9 12 14 14 15 16 23 24 24 24 24 24 24 24 24 24 24 24 24 24 24 24 24 24 24 24 24 24 24 24 23 24 25 24 24 24 24 24 24 24 23 Final Capacity 25 | 8 15 15 15 15 25 25 25 25 25 25 25 25 25 25 25 25 25 25 25 25 25 25 25 25 25 25 25 25 25 25 25 25 25 25 25 25 25 25 25 25 25 Final Carried 25 | 7 12 13 15 15 16 17 25 25 25 25 25 24 25 24 25 25 25 25 25 25 25 24 25 25 25 25 25 25 24 25 23 25 25 24 24 24 25 25 24 25 21 Class Distribution -------------------- 36% | Scavenger-Gunner 23% | Scavenger-Tank 8% | Scavenger-Mutant 7% | Tank 6% | Commander-Tank 5% | Gunner 4% | Commander-Gunner 4% | Mutant Dominant Class ---------------- Mutant | -10/Materials Mutant | -10/Mines Scavenger-Mutant | -9/Materials Scavenger-Mutant | -9/Mines Scavenger-Mutant | -9/Exiles Scavenger-Mutant | -8/Mines Scavenger-Gunner | -8/Materials Commander-Mutant | -8/Garrison Commander-Gunner | -8/Materials Tank | -8/Garrison Tank | -8/Materials Tank | -8/Garrison Scavenger-Gunner | -8/Materials Scavenger-Gunner | -7/Factory Scavenger-Gunner | -7/Garrison Scavenger-Gunner | -7/Factory Scavenger-Gunner | -7/Lower Caves Scavenger-Gunner | -7/Lower Caves Scavenger-Gunner | -7/Zion Scavenger-Gunner | -6/Proximity Caves Scavenger-Gunner | -6/Factory Scavenger-Gunner | -6/Extension Commander-Gunner | -6/Cetus Commander-Tank | -6/Archives Scavenger-Tank | -6/Hub_04(d) Scavenger-Gunner | -5/Factory Scavenger-Tank | -5/Upper Caves Scavenger-Tank | -5/Upper Caves Scavenger-Tank | -5/Warlord Commander-Tank | -4/Proximity Caves Commander-Tank | -4/Factory Commander-Tank | -4/Garrison Commander-Tank | -4/Factory Scavenger-Tank | -4/Upper Caves Scavenger-Tank | -4/Upper Caves Scavenger-Mutant | -4/Zhirov Scavenger-Tank | -3/Proximity Caves Scavenger-Tank | -3/Research Scavenger-Tank | -3/Testing Gunner | -2/Research Tank | -1/Access Resources | -11 -10 -10 -9 -9 -9 -8 -8 -8 -8 -8 -8 -8 -8 -7 -7 -7 -7 -7 -7 -6 -6 -6 -6 -6 -6 -5 -5 -5 -5 -4 -4 -4 -4 -4 -4 -4 -3 -3 -3 -2 -1 ----------- Run | Yrd Mat Min Mat Min Exi Min Mat Gar Mat Gar Mat Gar Mat Fac Gar Fac Low Low Zio Pro Fac Ext Cet Arc Hub Fac Upp Upp War Pro Fac Gar Fac Upp Upp Zhi Pro Res Tes Res Acc Matter Collected 19584 | 278 285 55 462 . 15 97 881 172 621 851 275 705 580 190 730 137 661 311 141 376 636 1190 224 359 624 568 484 526 558 297 . 521 643 1018 444 107 298 242 1311 576 1135 Remotely 146 | . . . . . . . . . . . . . . . . . . . . . . . . . . . . . . . . . . . . . . . . . 146 Salvage Created 23176 | 94 389 102 763 3 15 137 1235 194 731 1123 517 807 750 190 814 228 379 175 . 152 631 1672 125 314 1407 576 675 985 173 444 . 709 888 530 297 165 294 362 1361 376 2394 Parts 1150 | 6 27 8 60 2 . 7 58 13 42 65 36 56 48 8 46 13 22 10 . 8 34 87 8 22 71 31 16 42 7 11 . 24 37 14 3 3 13 14 67 11 100 Haulers Intercepted 22 | . 2 . 3 . . . 4 . 3 . 1 . 1 . . . . . . . . . . . 1 1 . . . . . . 1 . . . . . 1 3 1 Recyclers Shooed 10 | . . . 4 . . . . . . . 1 . . . . . . . . . . 3 . . . 1 . . . . . . . . . . . . . . 1 Parts Field Recycled . | . . . . . . . . . . . . . . . . . . . . . . . . . . . . . . . . . . . . . . . . . . Retrieved Matter . | . . . . . . . . . . . . . . . . . . . . . . . . . . . . . . . . . . . . . . . . . . Parts Self-Destructed 140 | . . . . . . . . . . . . . . . . . 22 10 2 16 . . . . . . 15 38 . 14 . . . 7 4 3 9 . . . . Prevented 5 | . . . . . . . . . . . . . . . . . 3 . . 1 . . . . . . 1 . . . . . . . . . . . . . . Parts Restored . | . . . . . . . . . . . . . . . . . . . . . . . . . . . . . . . . . . . . . . . . . . Kills | -11 -10 -10 -9 -9 -9 -8 -8 -8 -8 -8 -8 -8 -8 -7 -7 -7 -7 -7 -7 -6 -6 -6 -6 -6 -6 -5 -5 -5 -5 -4 -4 -4 -4 -4 -4 -4 -3 -3 -3 -2 -1 ------- Run | Yrd Mat Min Mat Min Exi Min Mat Gar Mat Gar Mat Gar Mat Fac Gar Fac Low Low Zio Pro Fac Ext Cet Arc Hub Fac Upp Upp War Pro Fac Gar Fac Upp Upp Zhi Pro Res Tes Res Acc Combat Hostiles Destroyed 421 | . 11 2 17 . . 2 26 . 13 27 11 22 15 3 25 5 10 7 . 8 9 36 2 . 19 6 12 18 10 5 . 11 14 15 7 . 7 3 17 . 26 Melee 2 | . . . . . . . . . 1 . . . . . . . . . . . . . . . . . . . . . . . 1 . . . . . . . . Guns 289 | . 11 2 17 . . 2 16 . 9 19 9 17 13 3 16 5 6 4 . 4 8 21 2 . 19 6 12 12 . . . 1 11 2 1 . . 3 17 . 21 Cannons 15 | . . . . . . . . . . . . . . . . . . . . . . . . . . . . . 1 1 . 4 2 2 1 . . . . . 4 AOE 107 | . . . . . . . 10 . 3 8 2 5 2 . 9 . 4 3 . 4 . 13 . . . . . 6 9 4 . 4 . 10 5 . 6 . . . . Classes Destroyed 27 | 2 3 1 2 . . . 1 . 2 2 2 1 1 . . . 1 1 . 1 . . . . . 1 1 1 1 . . . . 2 . . . . . . 1 Worker 17 | . . 1 1 . . 1 6 . . . 1 . . . . . . . . . . . . . 6 . . . . . . . . . . . . . . . 1 Builder 3 | . . . . . . . . . . . . . . . . . . . . . . . . . . 1 . . . . . . . . . . . . . . 2 Tunneler 6 | 2 . . . 1 . . . . . . . . 1 . . . . . . . . 1 . . . 1 . . . . . . . . . . . . . . . Hauler 22 | . 2 . 3 . . . 4 . 3 . 1 . 1 . . . . . . . . . . . 1 1 . . . . . . 1 . . . . . 1 3 1 Recycler 8 | 1 . . . . . . 2 . 1 . . . . . . . . . . . . 1 . . . . . . . . . . . . . . . 1 . 1 1 Minesweeper 3 | . . . . . . . . . . . . . . . . . 2 . . . . . . . . . . 1 . . . . . . . . . . . . . Mechanic 3 | . . . . . . . . . . . 1 . . . . . . . . . . . . . . 1 . . . . . . . . . . . . . . 1 Operator 19 | . . . . . . . . . 2 . . . . 1 . . . . . . 2 1 . 9 . 1 . . . . . . . . . . . . 1 . 2 Drone 2 | . . . . . . . . . . . . . . . . . . . . 1 . . . . . . . . . 1 . . . . . . . . . . . Watcher 4 | . . . . . . . . . . . . . 1 . . . . . . . 1 1 . . 1 . . . . . . . . . . . . . . . . Swarmer 90 | . 6 . 7 . . . 4 . 1 3 3 5 2 . 17 . 5 4 . 5 . 6 . . . . 5 2 1 . . . 3 7 . . 4 . . . . Grunt 165 | . 5 2 4 . . 2 15 . 7 12 2 7 5 3 2 2 5 . . 1 7 19 . . 10 3 6 5 . 3 . 6 10 3 3 . . 3 1 . 12 Brawler 14 | . . . 1 . . . . . 1 2 1 . 1 . . . . . . . . . . . . . . 2 2 . . . 1 1 1 . . . . . 1 Duelist 19 | . . . . . . . . . . . 1 1 . . 2 . . . . 1 . 1 . . 1 . . 4 3 . . . . 1 1 . . . 3 . . Protector 2 | . . . . . . . . . . . . . . . . . . . . . . . . . . . . 1 1 . . . . . . . . . . . . Researcher 2 | . . . . . . . . . . . . . . . . . . . . . . . . . . . . . . . . . . 1 . . . . 1 . . Sentry 47 | . . . 5 . . . 5 . 2 7 2 . 6 . 4 . . 1 . . . 4 . . 2 . 1 2 . 1 . 1 . 1 . . . . . . 3 Demolisher 2 | . . . . . . . . . 2 . . . . . . . . . . . . . . . . . . . . . . . . . . . . . . . . Specialist 6 | . . . . . . . . . . . . 3 . . . . . . . . . . . . . . . . . . . . . . . . . . 3 . . Hunter 30 | . . . . . . . 2 . . . 2 . 1 . . 1 . . . . . 3 . . 5 2 . 2 1 . . 3 . . 2 . 2 . 2 . 2 Programmer 30 | . . . . . . . . . . 2 . 6 . . . 2 . 1 . . 1 1 . . 1 1 . . . . . . . . . . . . 8 . 7 Heavy 1 | . . . . . . . . . . . . . . . . . . . . . . . . . . . . . . . . . . . . . . . . . 1 Behemoth 7 | . . . . . . . . . . 1 . . . . . . . . . . 1 2 . . . . . . . . . 1 . 1 . . 1 . . . . Cetus Guard 2 | . . . . . . . . . . . . . . . . . . . . . . . 2 . . . . . . . . . . . . . . . . . . Executioner 2 | . . . . . . . . . . . . . . . . . . . . . . . . . . . . . 2 . . . . . . . . . . . . Packrat 1 | . . . . . . . . . . . . . . . . . . . . . . . . . . . . . . . . . . 1 . . . . . . . Samaritan 1 | . . . . . . . . . . . . . . . . . . . . . . . . . . . 1 . . . . . . . . . . . . . . Thief 1 | . . . . . . . . . . . . . . . . . . 1 . . . . . . . . . . . . . . . . . . . . . . . Mutant 1 | . . . . . . . . . . . . . . . . . . . . . . . . . . . . . . . . . . 1 . . . . . . . Infiltrator 1 | . . . . . . . . . . . . . . . . . . . . . . . . . 1 . . . . . . . . . . . . . . . . Best Kill Streak 16 | 3 4 2 5 1 . 2 8 . 6 6 8 8 4 3 9 2 4 4 . 4 3 16 2 6 6 2 6 10 10 3 . 3 7 6 4 . 4 4 5 2 6 Combat Bots Only 14 | . 3 2 5 . . 2 4 . 5 6 7 8 4 2 9 2 4 4 . 4 3 14 2 . 3 2 6 10 10 3 . 3 7 6 4 . 4 3 3 . 5 Max Kills in Single Turn 5 | 1 1 1 1 1 . 1 2 . 2 2 2 2 1 1 5 1 3 2 . 2 1 4 1 1 2 2 2 4 5 2 . 2 1 4 3 . 4 1 2 2 2 Gunslinging 1 | . . . . . . . . . 1 . . 1 . . 1 . . . . . . . . . 1 1 1 . . . . . . . . . . . 1 . 1 Exploded 5 | . . . . . . . 2 . 1 2 1 2 1 . 5 . 3 2 . 2 . 4 . . . . . 4 5 2 . 2 . 4 3 . 4 . . . . Melee 1 | . . . . . . . . . 1 . . . . . . . . . . . . . . . . . . . . . . . 1 . . . . . . . . Uniques/NPCs Destroyed . | . . . . . . . . . . . . . . . . . . . . . . . . . . . . . . . . . . . . . . . . . . Combat | -11 -10 -10 -9 -9 -9 -8 -8 -8 -8 -8 -8 -8 -8 -7 -7 -7 -7 -7 -7 -6 -6 -6 -6 -6 -6 -5 -5 -5 -5 -4 -4 -4 -4 -4 -4 -4 -3 -3 -3 -2 -1 -------- Run | Yrd Mat Min Mat Min Exi Min Mat Gar Mat Gar Mat Gar Mat Fac Gar Fac Low Low Zio Pro Fac Ext Cet Arc Hub Fac Upp Upp War Pro Fac Gar Fac Upp Upp Zhi Pro Res Tes Res Acc Hostile Shots Fired 1624 | . 46 8 64 . . 6 98 . 38 102 37 101 27 3 109 16 9 27 . 40 39 145 9 . 84 44 59 40 1 9 . 65 77 26 8 . 6 16 96 . 169 Missed 515 | . 17 2 19 . . 1 31 . 12 25 9 34 9 2 44 2 4 16 . 14 11 54 5 . 27 16 14 11 . 2 . 17 25 5 3 . 1 5 22 . 56 Hits 1109 | . 29 6 45 . . 5 67 . 26 77 28 67 18 1 65 14 5 11 . 26 28 91 4 . 57 28 45 29 1 7 . 48 52 21 5 . 5 11 74 . 113 Melee 12 | . . . 2 . . . . . . . . 1 . . . . . . . . . 1 . . 1 . . 4 . . . . . . . . . . 2 . 1 Projectile 1097 | . 29 6 43 . . 5 67 . 26 77 28 66 18 1 65 14 5 11 . 26 28 90 4 . 56 28 45 25 1 7 . 48 52 21 5 . 5 11 72 . 112 AOE 18 | . . . . . . . . . 10 4 . . . . . . . . . . . . . . . 1 . . . . . . . . . . . . . 3 . Critical Strikes 35 | . . 1 1 . . 1 3 . . 1 . 4 1 1 1 1 . . . 1 2 3 2 . 2 . . . 1 . . 1 3 . . . . . 2 . 3 Actively Blocked 5 | . . . . . . . . . . . . 1 . . . . . . . . . . . . . . . . . . . . . . . . . . 1 . 3 Part Disruptions 3 | . . . . . . . . . . . . . . . . . . . . . . . . . . . . . . . . . . . . . . . 1 . 2 Damage Taken 17672 | . 345 89 488 . . 104 1139 . 662 1269 282 1042 287 16 508 217 80 113 . 474 497 1210 128 . 879 578 803 489 19 135 . 849 942 346 70 . 127 234 1550 126 1575 Core 1348 | . 90 16 77 . . 56 192 . 81 71 12 97 29 . 51 . 15 16 . 34 11 124 . . 97 . 29 23 . 14 . 16 100 . . . . . 42 . 55 Absorbed by Shields 2823 | . . . . . . . . . . 178 98 27 . . 160 . . 8 . . 104 191 . . . . . 162 18 41 . 74 101 106 21 . 40 72 187 . 1235 Reduced by Siege Mode 183 | . . . . . . . . . . . . . . . . . . . . . . . . . . . 47 11 . . . . . 11 . . . 1 68 . 45 Redirected to Shielding 154 | . . . . . . . . . . . . 107 . . . . . . . . . . . . . . . . . . . . . . . . . 31 16 . . Ignored by Resistances 53 | . . . . . . . . . . . . . . . . . . . . . . . . . . . . . . . . . . 53 . . . . . . . Regen/Repaired (Parts) 2954 | . . . 129 . . . . . 76 . 135 . . 192 . . . . . . 442 . . . . 346 . . 145 . . . 833 . . . . 105 91 66 394 Core Remaining (%) 78 | 100 . 57 . . . 66 . . . . . . 12 . . . . . . 83 . . . . 72 . . . . 93 . . . . . . 89 . 96 100 96 Volleys Fired 1017 | 3 41 6 45 . 2 10 65 1 34 59 24 40 37 8 37 19 34 14 . 22 27 44 6 21 29 52 23 22 15 16 1 40 35 33 18 . 6 6 41 9 72 Largest 4 | 2 2 2 2 . 2 2 3 3 3 3 3 3 3 3 3 3 3 3 . 3 4 4 4 4 4 4 4 4 3 3 1 3 3 4 4 . 1 4 4 4 4 Hottest 228 | 40 100 40 46 . 46 46 75 75 75 75 75 75 75 75 90 90 90 81 . 90 117 119 119 121 136 134 134 134 105 138 68 191 138 147 173 . 70 138 143 141 228 Shots Fired 2630 | 6 80 13 90 . 4 20 159 3 94 159 66 110 104 24 91 49 60 37 . 40 83 160 25 59 110 117 77 79 19 26 1 51 85 52 30 . 6 24 161 36 220 Gun 2339 | 6 79 13 90 . 4 20 141 3 90 152 64 106 102 24 86 45 39 35 . 27 75 155 25 59 108 87 73 77 6 13 . 20 65 31 12 . . 24 160 36 187 Cannon 200 | . . . . . . . . . . . . . . . 1 4 19 . . 10 8 . . . 2 30 4 . 2 10 1 28 19 14 12 . 4 . 1 . 31 Launcher 73 | . . . . . . . 18 . 4 7 2 4 2 . 4 . 2 2 . 3 . 1 . . . . . 2 . 3 . 3 1 7 6 . 2 . . . . Special 18 | . 1 . . . . . . . . . . . . . . . . . . . . 4 . . . . . . 11 . . . . . . . . . . . 2 Kinetic 2399 | 6 79 13 90 . 4 20 141 3 90 152 64 106 102 24 86 45 39 35 . 27 75 155 25 59 108 87 73 77 6 16 1 30 84 42 24 . 4 24 160 36 187 Thermal 110 | . 1 . . . . . . . . . . . . . 1 4 19 . . 10 8 . . . 2 30 4 . . 7 . . . . . . . . . . 24 Explosive 81 | . . . . . . . 18 . 4 7 2 4 2 . 4 . 2 2 . 3 . 5 . . . . . 2 4 3 . 3 1 7 6 . 2 . . . . Electromagnetic 30 | . . . . . . . . . . . . . . . . . . . . . . . . . . . . . 1 . . 18 . 3 . . . . 1 . 7 Entropic 1 | . . . . . . . . . . . . . . . . . . . . . . . . . . . . . 1 . . . . . . . . . . . . Robot Hit Streak 24 | 3 12 3 24 . 4 10 17 5 14 23 21 13 13 12 11 9 24 24 . 5 16 17 19 16 22 19 14 17 12 6 . 9 7 12 15 . 8 13 18 11 17 Robot Miss Streak 5 | . 4 4 2 . . 1 2 . 3 2 3 5 3 2 2 2 3 5 . 3 3 3 4 2 1 2 2 2 1 1 . 2 5 2 1 . . 1 3 2 5 Penetration Max 2 | . . . . . . . . . . . . . . . . . . . . 1 1 1 . 1 1 1 1 1 1 . . . 1 1 . . . 1 1 1 2 Secondary Targets 56 | . 1 . 3 . . . 1 . 1 3 2 7 1 . 2 1 . . . 1 2 3 1 . 3 2 6 3 . . . . 2 1 . . . 1 3 . 6 Max Gunslinging Chain 2 | . 1 . 1 . . . 1 . 1 1 1 1 1 . 2 1 . . . 1 1 1 1 . 1 1 1 1 . . . . 1 1 . . . 1 1 . 1 Shots Hit Robots 1738 | 3 50 6 70 1 1 16 118 10 62 121 46 73 71 16 51 30 33 20 2 15 59 143 20 42 71 57 50 57 17 10 . 18 49 33 13 3 2 21 105 20 133 Core Hits 985 | 3 21 5 31 . 1 8 71 5 34 55 21 42 33 8 45 11 20 13 . 11 26 81 9 22 51 24 21 46 24 11 . 16 28 26 11 . 6 13 51 10 71 Critical Kills 40 | . . . . . . . . . 1 . 2 . . . . 1 . . . . . 1 1 3 5 1 1 3 . 1 . . 3 . . . . 2 4 1 10 Critical Parts Destroyed 46 | . . . . . . . . . . 1 . 1 1 . . . . . . . . 1 . 2 4 3 3 1 . . . . 3 1 1 . . 2 12 2 8 Critical Strikes 99 | . . . . . . . 1 . 1 1 2 1 1 . . 1 . . . . . 4 1 5 9 4 5 5 . 2 . . 9 3 1 . . 4 16 3 20 Destroy 94 | . . . . . . . 1 . 1 1 2 1 1 . . 1 . . . . . 2 1 5 9 4 5 5 . 2 . . 7 2 1 . . 4 16 3 20 Blast 3 | . . . . . . . . . . . . . . . . . . . . . . . . . . . . . . . . . 2 1 . . . . . . . Sever 2 | . . . . . . . . . . . . . . . . . . . . . . 2 . . . . . . . . . . . . . . . . . . . Melee Attacks 163 | . . . . 1 . . 4 24 1 10 2 11 . 1 16 . . 1 3 . 5 42 . 1 . 6 . . 3 . . 16 2 1 . 3 1 5 4 . . Impact 1 | . . . . . . . . . . . . . . . . . . 1 . . . . . . . . . . . . . . . . . . . . . . . Slashing 69 | . . . . . . . 4 24 1 10 2 11 . 1 16 . . . . . . . . . . . . . . . . . . . . . . . . . . Piercing 46 | . . . . . . . . . . . . . . . . . . . 1 . 5 2 . . . 6 . . . . . 16 2 1 . 3 1 5 4 . . Sneak Attacks 47 | . . . . 1 . . . . . . . . . . . . . . 2 . . 40 . 1 . . . . 3 . . . . . . . . . . . . Combat Hostiles . | . . . . . . . . . . . . . . . . . . . . . . . . . . . . . . . . . . . . . . . . . . Follow-up Attacks . | . . . . . . . . . . . . . . . . . . . . . . . . . . . . . . . . . . . . . . . . . . Damage Inflicted 57870 | 41 685 112 1132 16 18 254 3616 686 1596 2810 1067 1929 1442 297 1463 548 745 542 . 745 1248 4886 411 1047 2335 1561 1431 2239 2907 1140 2 1360 2161 3687 1371 136 769 643 3208 544 5040 Guns 35736 | 41 682 80 1096 . 18 217 1723 17 1001 2097 729 1386 1167 297 904 547 546 409 . 307 1172 2283 411 1047 2214 1503 1418 1492 160 217 . 182 1189 549 192 . . 643 3189 544 4067 Cannons 3215 | . . . . . . . . . . . . . . . . . . . . . . . . . . 33 . . . 96 . 532 942 773 34 . . . . . 805 Explosions 17131 | . . . . . . . 1890 . 550 713 321 543 227 . 559 . 199 133 . 438 . 2380 . . 78 . . 747 2551 827 . 646 . 2351 1128 . 769 . . . 81 Melee 872 | . . . . . . . . 669 . . . . . . . . . . . . 67 . . . . . . . . . . . . . . 136 . . . . . Ramming 585 | . 3 32 36 16 . 37 3 . 45 . 17 . 48 . . 1 . . . . 9 88 . . 43 25 13 . . . 2 . 30 14 17 . . . 19 . 87 Kinetic 37679 | 41 682 80 1096 . 18 217 1723 17 1001 2097 729 1386 1167 297 904 547 546 409 . 307 1172 2283 411 1047 2214 1503 1418 1492 160 313 . 400 2131 1202 226 . . 643 3189 544 4067 Thermal 676 | . . . . . . . . . . . . . . . . . . . . . . . . . . 33 . . . . . . . . . . . . . . 643 Explosive 16972 | . . . . . . . 1890 . 550 713 321 543 227 . 559 . 199 133 . 438 . 2380 . . . . . 747 2551 827 . 646 . 2351 1128 . 769 . . . . Electromagnetic 755 | . . . . . . . . . . . . . . . . . . . . . . . . . 78 . . . . . . 314 . 120 . . . . . . 243 Impact . | . . . . . . . . . . . . . . . . . . . . . . . . . . . . . . . . . . . . . . . . . . Slashing 1000 | . . . . . . . . 669 . . . . . . . . . . . . . 135 . . . . . . 196 . . . . . . . . . . . . Piercing 203 | . . . . . . . . . . . . . . . . . . . . . 67 . . . . . . . . . . . . . . 136 . . . . . Highest Corruption 20 | . 4 4 . . . . . . . 2 2 10 10 . . 1 . . . . 1 1 10 20 18 . . 4 4 . . 1 1 1 1 1 1 1 18 . 5 Average Corruption 3 | . 3 4 . . . . . . . 1 2 4 10 . . 1 . . . . 1 1 3 10 8 . . 4 4 . . 1 1 1 1 1 1 1 12 . 4 Corruption Purged 15 | . . . . . . . . . . . . . . . . 1 . . . . . . . 13 . . . . . . . . . . . . . . . . 1 Corruption Blocked . | . . . . . . . . . . . . . . . . . . . . . . . . . . . . . . . . . . . . . . . . . . Effects 274 | . 7 9 . . . . . . . 14 6 15 27 . . 2 . . . . 13 26 9 24 31 . . 4 2 . . 4 8 7 4 . 5 3 45 . 9 Message Errors 75 | . . 1 . . . . . . . 4 2 2 4 . . . . . . . 6 8 3 7 8 . . 3 . . . 1 2 3 1 . . 2 13 . 5 Matter Fused 52 | . . 1 . . . . . . . 1 1 4 5 . . . . . . . 4 6 1 3 6 . . 1 1 . . 1 4 1 1 . 2 . 9 . . Heat Flow Errors 41 | . 2 3 . . . . . . . 5 2 2 5 . . . . . . . 1 2 . 2 6 . . . . . . . . 1 1 . 2 . 6 . 1 Energy Discharges 31 | . 2 . . . . . . . . 2 . 2 6 . . 1 . . . . . 4 1 1 3 . . . . . . 1 1 . . . . . 6 . 1 Parts Rejected 2 | . . . . . . . . . . . . 1 . . . . . . . . . . . . . . . . . . . . . . . . . . 1 . . Parts Fused 4 | . . . . . . . . . . . . . . . . . . . . . . 2 . . 1 . . . . . . . . . . . 1 . . . . Data Loss (minor) 33 | . 1 1 . . . . . . . 2 1 2 4 . . 1 . . . . 2 2 2 4 2 . . . . . . 1 1 1 . . . 1 5 . . Data Loss (major) 10 | . 1 1 . . . . . . . . . 2 . . . . . . . . . 1 . . 3 . . . 1 . . . . . . . . . . . 1 Misfires 9 | . . 1 . . . . . . . . . . 1 . . . . . . . . 1 1 . 1 . . . . . . . . 1 1 . . . 1 . 1 Alerts 6 | . . 1 . . . . . . . . . . . . . . . . . . . . 1 2 . . . . . . . . . . . . . . 2 . . Misdirections 1 | . . . . . . . . . . . . . . . . . . . . . . . . . . . . . . . . . . . . . . . 1 . . Weapon Failures 10 | . 1 . . . . . . . . . . . 2 . . . . . . . . . . 5 1 . . . . . . . . . . . . . 1 . . Overload Shots . | . . . . . . . . . . . . . . . . . . . . . . . . . . . . . . . . . . . . . . . . . . Overflow Damage 943 | . . . . . . . 25 26 54 60 . 6 . . . . . . . 71 . 42 . . . . 6 6 . 22 . 12 36 311 42 66 40 . . . 118 Projectiles 283 | . . . . . . . . . . . . . . . . . . . . . . 4 . . . . . . . . . 12 36 82 31 . . . . . 118 Explosions 554 | . . . . . . . 25 . 46 60 . 6 . . . . . . . 71 . 38 . . . . . 6 . 22 . . . 229 11 . 40 . . . . Melee 106 | . . . . . . . . 26 8 . . . . . . . . . . . . . . . . . 6 . . . . . . . . 66 . . . . . Knockbacks 11 | . . . . . . . . . . . . . 1 . . . . . . . . 1 . . 1 . . . . . . 1 6 . . . . . . . 1 Impact 4 | . . . . . . . . . . . . . 1 . . . . . . . . 1 . . 1 . . . . . . . . . . . . . . . 1 Kinetic 6 | . . . . . . . . . . . . . . . . . . . . . . . . . . . . . . . . 1 5 . . . . . . . . Secondary 1 | . . . . . . . . . . . . . . . . . . . . . . . . . . . . . . . . . 1 . . . . . . . . Self-Inflicted Damage 320 | . . . . . . . 82 . . 35 10 94 . . . . . . . . . . . . 99 . . . . . . . . . . . . . . . . Shots 9 | . . . . . . . 2 . . 2 1 3 . . . . . . . . . . . . 1 . . . . . . . . . . . . . . . . Rammed 58 | . 3 3 7 3 . 4 1 . 2 . 3 . 5 . . 1 . . . . . 8 . . 5 . 2 . . . 1 . 3 . 2 . . . 1 . 4 Targets Rammed 66 | . 3 3 7 4 . 4 1 . 4 . 3 . 5 . . 1 . . . . 1 9 . . 5 1 2 . . . 1 . 3 1 3 . . . 1 . 4 Kicked . | . . . . . . . . . . . . . . . . . . . . . . . . . . . . . . . . . . . . . . . . . . Crushed 8 | . . . . 1 . . . . 2 . . . . . . . . . . . 1 1 . . . 1 . . . . . . . 1 1 . . . . . . Highest Temperature 365 | . 230 252 19 . . 8 82 28 214 278 151 229 251 54 128 88 190 32 . 136 272 365 138 213 304 304 320 278 54 266 26 276 337 213 224 . 180 . 195 . 207 Average Temperature 78 | . 110 95 4 . . 4 34 15 61 103 42 66 56 25 39 31 47 17 . 46 80 105 54 42 94 101 98 110 26 99 14 89 130 64 68 . 89 . 91 . 31 Received Heat Transfer 3451 | . 114 72 96 . . 45 504 . 81 303 75 141 108 27 39 36 27 12 . 69 199 350 18 . 228 39 261 57 . 29 . 72 221 52 . . 6 51 . . 119 Effects 4 | . . . . . . . . . . . . . . . . . . . . . . . . . . 1 . 2 . . . . 1 . . . . . . . . Energy Bleed 3 | . . . . . . . . . . . . . . . . . . . . . . . . . . 1 . 2 . . . . . . . . . . . . . Damage (minor) 1 | . . . . . . . . . . . . . . . . . . . . . . . . . . . . . . . . . 1 . . . . . . . . Siege Activations 13 | . . . . . . . . . . . . . . . . . . . . . . . . . . . 1 1 . 1 . . . 2 . . . 1 3 . 4 Total Turns 521 | . . . . . . . . . . . . . . . . . . . . . . . . . . . 54 103 . 112 . . . 56 . . . 41 65 . 90 Longest Duration 112 | . . . . . . . . . . . . . . . . . . . . . . . . . . . 54 103 . 112 . . . 53 . . . 41 39 . 36 Martial Activations . | . . . . . . . . . . . . . . . . . . . . . . . . . . . . . . . . . . . . . . . . . . Shielding Activations . | . . . . . . . . . . . . . . . . . . . . . . . . . . . . . . . . . . . . . . . . . . Robots Disrupted . | . . . . . . . . . . . . . . . . . . . . . . . . . . . . . . . . . . . . . . . . . . Combat Hostiles . | . . . . . . . . . . . . . . . . . . . . . . . . . . . . . . . . . . . . . . . . . . Robots Corrupted 3 | . . . . . . . . . . . . . . . . . . . . . . . . . . . 1 . . . . 1 . . . . . . . . 1 Combat Hostiles 2 | . . . . . . . . . . . . . . . . . . . . . . . . . . . . . . . . 1 . . . . . . . . 1 Parts Fried 13 | . . . . . . . . . . . . . . . . . . . . . 1 . . . . . 3 . . . . 3 . 4 . . . . . . 2 Impact Corruptions 3 | . . . . . . . . . 1 . . . . . . . . . . . . . . . . . 2 . . . . . . . . . . . . . . Robots Melted . | . . . . . . . . . . . . . . . . . . . . . . . . . . . . . . . . . . . . . . . . . . Combat Hostiles . | . . . . . . . . . . . . . . . . . . . . . . . . . . . . . . . . . . . . . . . . . . Parts Melted 1 | . . . . . . . . . . . . . . . . . . . . . . . 1 . . . . . . . . . . . . . . . . . . Heat Transferred 463 | . . . . . . . . . . . . . . . . . . . . . . . . . . 37 . . . . . . . . . . . . . . 426 Parts Sabotaged . | . . . . . . . . . . . . . . . . . . . . . . . . . . . . . . . . . . . . . . . . . . Parts Stolen . | . . . . . . . . . . . . . . . . . . . . . . . . . . . . . . . . . . . . . . . . . . Parts Stripped . | . . . . . . . . . . . . . . . . . . . . . . . . . . . . . . . . . . . . . . . . . . Power Chain Reactions . | . . . . . . . . . . . . . . . . . . . . . . . . . . . . . . . . . . . . . . . . . . Alert | -11 -10 -10 -9 -9 -9 -8 -8 -8 -8 -8 -8 -8 -8 -7 -7 -7 -7 -7 -7 -6 -6 -6 -6 -6 -6 -5 -5 -5 -5 -4 -4 -4 -4 -4 -4 -4 -3 -3 -3 -2 -1 ------- Run | Yrd Mat Min Mat Min Exi Min Mat Gar Mat Gar Mat Gar Mat Fac Gar Fac Low Low Zio Pro Fac Ext Cet Arc Hub Fac Upp Upp War Pro Fac Gar Fac Upp Upp Zhi Pro Res Tes Res Acc Maximum Alert Level 4 | . . . . . . . 1 4 3 4 3 3 2 1 3 2 . . . . 1 3 2 1 2 1 . . . . . 4 4 . . . . . . . 4 Low Security (%) 49 | 100 100 100 100 100 . 100 47 . . . . . . . 8 34 . . . . 98 96 . 29 36 70 . . . . 100 3 . . . . . 100 100 100 36 Level 1 12 | . . . . . . . 52 20 20 . . . . 100 17 12 . . . . 1 . 28 70 37 29 . . . . . 3 . . . . . . . . 8 Level 2 20 | . . . . . . . . 34 56 24 92 54 100 . 26 53 . . . . . . 71 . 25 . . . . . . 34 40 . . . . . . . 23 Level 3 10 | . . . . . . . . 23 23 23 7 45 . . 48 . . . . . . 2 . . . . . . . . . 29 35 . . . . . . . 12 Level 4 7 | . . . . . . . . 21 . 52 . . . . . . . . . . . . . . . . . . . . . 29 24 . . . . . . . 18 Level 5 . | . . . . . . . . . . . . . . . . . . . . . . . . . . . . . . . . . . . . . . . . . . High Security . | . . . . . . . . . . . . . . . . . . . . . . . . . . . . . . . . . . . . . . . . . . Max Security . | . . . . . . . . . . . . . . . . . . . . . . . . . . . . . . . . . . . . . . . . . . Peak Influence 1480 | 10 97 40 189 26 . 68 387 1354 769 1475 718 1011 678 293 1078 580 . . . . 204 749 501 314 621 291 . . . . 197 1417 1434 . . . . 75 168 83 1480 Initial 743 | . . 3 . 21 . . . 245 659 521 718 433 487 291 142 565 . . . . 204 30 416 174 46 291 . . . . 179 130 743 . . . . 15 . 83 . Average 352 | . 29 4 81 2 . 8 170 738 571 1003 554 701 557 256 646 377 . . . . 71 68 424 237 305 163 . . . . 177 822 863 . . . . 8 46 7 513 Influence Increases 20678 | 15 338 55 491 5 . 175 863 1109 1140 1054 403 618 487 92 1016 170 240 140 . 441 454 1299 345 278 1147 251 305 387 413 295 198 1517 1341 385 247 10 170 119 546 26 2093 Destroy 0b10 Robot/C 11100 | . 220 40 340 . . 120 520 . 620 620 260 460 300 60 580 100 200 120 . 300 180 740 160 80 460 120 240 340 280 160 . 620 600 320 200 . 140 60 360 . 1180 Destroy 0b10 Robot/NC 615 | 15 10 5 20 5 . 10 60 20 55 . 15 . 15 5 . . 10 . . 10 15 20 10 45 60 25 5 10 5 25 . . 25 . 5 10 . 5 10 20 65 Destroy Leader 1760 | . 44 10 96 . . 20 148 . 162 30 82 40 104 10 30 30 30 20 . 50 42 92 . . 118 32 10 30 . 20 . 40 114 20 10 . 30 10 42 6 238 Allied During Kill 2296 | . . . . . . 9 . 6 235 12 8 2 . . 13 . . . . 66 . 361 170 114 112 . 20 7 128 90 . 296 308 45 32 . . . . . 262 Successful Hack 378 | . 48 . 20 . . . 24 . 22 . 7 16 2 16 16 7 . . . . 14 . . . . 2 . . . . 46 46 28 . . . . 36 28 . . Select Force Hacks 50 | . . . . . . . . . . . . . . . . . . . . . . . . . 50 . . . . . . . . . . . . . . . . Disable Machine 765 | . 15 . . . . 15 45 15 30 30 . . . . 30 30 . . . . 30 45 . 30 180 30 . . . . . 60 45 . . . . . 90 . 45 Anti-Garrison Action 2050 | . . . . . . . . 1050 . 300 . 50 . . 300 . . . . . . . . . . . . . . . . 350 . . . . . . . . . Destroy Structure 1079 | . 1 . . . . 1 51 18 16 62 16 35 21 1 32 3 . . . . 8 26 5 9 122 42 . . . . 2 105 206 . . . . 8 16 . 273 Advance Influence 300 | . . . . . . . . . . . . . . . . . . . . . 150 . . . . . . . . . 150 . . . . . . . . . . Partial Spotted 15 | . . . . . . . 15 . . . . . . . . . . . . . . . . . . . . . . . . . . . . . . . . . . Lose Combat Pursuer 270 | . . . 15 . . . . . . . 15 15 45 . 15 . . . . 15 15 15 . . 45 . 30 . . . . . 15 . . . . . . . 30 Influence Decreases 19300 | 15 329 64 435 61 . 175 485 133 1691 382 1211 284 848 529 141 1117 371 140 . 354 478 619 653 579 684 764 310 278 216 633 58 287 1336 1113 527 424 146 143 398 174 715 Entered New Map 7195 | . . 6 . 35 . . . 133 695 282 757 234 514 349 61 513 50 . . . 33 33 327 261 88 306 32 16 188 385 18 57 674 527 133 414 . 9 . 65 . Time Decay 9590 | 15 329 58 435 26 . 150 475 . 546 . 254 . 334 180 . 294 321 140 . 334 445 536 206 278 366 458 278 222 28 248 40 . 422 546 334 10 146 134 388 109 505 Lost Part 120 | . . . . . . . 10 . 10 20 10 30 . . . . . . . . . 30 . . . . . . . . . . . . . . . . 10 . . Lost Ally 1495 | . . . . . . 25 . . 140 80 40 20 . . 80 10 . . . 20 . 20 120 40 230 . . 40 . . . 230 240 40 60 . . . . . 60 Purge Threat 900 | . . . . . . . . . 300 . 150 . . . . 300 . . . . . . . . . . . . . . . . . . . . . . . . 150 Squads Dispatched 84 | . 1 . 1 . . . 6 . 7 . 5 . 3 3 . 2 . . . . 5 1 . . 7 3 . 1 . . . . 8 . . . . 5 5 2 19 Investigation 17 | . 1 . 1 . . . 2 . 2 . 2 . . 2 . . . . . . 2 . . . 1 . . . . . . . 1 . . . . 2 . . 1 Extermination 15 | . . . . . . . . . . . . . . . . 2 . . . . 3 . . . 1 2 . . . . . . 2 . . . . . 3 . 2 Reinforcement 30 | . . . . . . . 1 . 2 . . . 2 . . . . . . . . 1 . . 5 1 . . . . . . 3 . . . . 3 2 2 8 Assault 8 | . . . . . . . . . 2 . 1 . . . . . . . . . . . . . . . . 1 . . . . 2 . . . . . . . 2 Garrison 14 | . . . . . . . 3 . 1 . 2 . 1 1 . . . . . . . . . . . . . . . . . . . . . . . . . . 6 Intercept . | . . . . . . . . . . . . . . . . . . . . . . . . . . . . . . . . . . . . . . . . . . Searches Triggered . | . . . . . . . . . . . . . . . . . . . . . . . . . . . . . . . . . . . . . . . . . . Construction Impeded 6 | . . . . . . . 1 . . . . . 1 . . . . . . . . 1 . . . . . . . . . . 1 . . . . . . . 2 Haulers Reinforced 6 | . . . . . . . . . . . . . . . . . . . . . . . . . 1 1 . . . . . . 2 . . . . 1 . . 1 Active Scanning Responses . | . . . . . . . . . . . . . . . . . . . . . . . . . . . . . . . . . . . . . . . . . . Cargo Convoy Interrupts . | . . . . . . . . . . . . . . . . . . . . . . . . . . . . . . . . . . . . . . . . . . Stealth | -11 -10 -10 -9 -9 -9 -8 -8 -8 -8 -8 -8 -8 -8 -7 -7 -7 -7 -7 -7 -6 -6 -6 -6 -6 -6 -5 -5 -5 -5 -4 -4 -4 -4 -4 -4 -4 -3 -3 -3 -2 -1 --------- Run | Yrd Mat Min Mat Min Exi Min Mat Gar Mat Gar Mat Gar Mat Fac Gar Fac Low Low Zio Pro Fac Ext Cet Arc Hub Fac Upp Upp War Pro Fac Gar Fac Upp Upp Zhi Pro Res Tes Res Acc Distress Signals 49 | . 3 . 1 . . . 4 . 2 . 2 . 3 1 . . . . . . . 1 2 . 3 1 . . . 2 . . 1 . . . . 9 . 12 2 Communications Jammed . | . . . . . . . . . . . . . . . . . . . . . . . . . . . . . . . . . . . . . . . . . . Distress Signals . | . . . . . . . . . . . . . . . . . . . . . . . . . . . . . . . . . . . . . . . . . . Times Spotted 643 | . 18 2 30 . . 7 38 . 37 31 16 25 19 4 27 6 10 8 . 14 19 44 10 8 29 12 15 16 13 7 . 19 23 14 7 . 1 11 23 15 65 Peak Tracking Total 10 | . 3 2 6 . . 3 4 . 4 6 6 9 5 2 10 3 3 4 . 4 4 9 5 2 5 3 7 9 10 4 . 4 9 6 9 . 1 5 3 7 7 Tactical Retreats 16 | . . . 1 . . . . . . . 1 1 1 . 1 . . 1 . 1 1 1 . . 3 . 2 . . . . . 1 . . . . . . . 1 Traps | -11 -10 -10 -9 -9 -9 -8 -8 -8 -8 -8 -8 -8 -8 -7 -7 -7 -7 -7 -7 -6 -6 -6 -6 -6 -6 -5 -5 -5 -5 -4 -4 -4 -4 -4 -4 -4 -3 -3 -3 -2 -1 ------- Run | Yrd Mat Min Mat Min Exi Min Mat Gar Mat Gar Mat Gar Mat Fac Gar Fac Low Low Zio Pro Fac Ext Cet Arc Hub Fac Upp Upp War Pro Fac Gar Fac Upp Upp Zhi Pro Res Tes Res Acc Traps Triggered 32 | . 3 . . . . . . 5 . 7 1 6 . . 1 . . . . . . 2 . . . 2 . . . . 1 . . . . . . 1 2 . 1 Indirectly . | . . . . . . . . . . . . . . . . . . . . . . . . . . . . . . . . . . . . . . . . . . Trap Hack Attempts . | . . . . . . . . . . . . . . . . . . . . . . . . . . . . . . . . . . . . . . . . . . Triggered . | . . . . . . . . . . . . . . . . . . . . . . . . . . . . . . . . . . . . . . . . . . Disarmed . | . . . . . . . . . . . . . . . . . . . . . . . . . . . . . . . . . . . . . . . . . . Reprogrammed . | . . . . . . . . . . . . . . . . . . . . . . . . . . . . . . . . . . . . . . . . . . Reused 3 | . . . . . . . . . . . . . . . . . . . . 1 . . . . . . . 2 . . . . . . . . . . . . . Traps Extracted . | . . . . . . . . . . . . . . . . . . . . . . . . . . . . . . . . . . . . . . . . . . Installed 6 | . . . . . . . . . . . . . . . . . 3 . . 1 . . . . . . . 2 . . . . . . . . . . . . . Triggered 3 | . . . . . . . . . . . . . . . . . . . . 1 . . . . . . . 2 . . . . . . . . . . . . . Most Traps Carried 3 | . . . . . . . . . . . . . . . . . 3 . . 1 . . . . . . . 2 . . . . . . . . . . . . . Machines | -11 -10 -10 -9 -9 -9 -8 -8 -8 -8 -8 -8 -8 -8 -7 -7 -7 -7 -7 -7 -6 -6 -6 -6 -6 -6 -5 -5 -5 -5 -4 -4 -4 -4 -4 -4 -4 -3 -3 -3 -2 -1 ---------- Run | Yrd Mat Min Mat Min Exi Min Mat Gar Mat Gar Mat Gar Mat Fac Gar Fac Low Low Zio Pro Fac Ext Cet Arc Hub Fac Upp Upp War Pro Fac Gar Fac Upp Upp Zhi Pro Res Tes Res Acc Machines Disabled 79 | . 1 . . . . 1 3 3 2 6 . 1 . . 6 2 2 . . . 2 5 . 2 12 2 1 2 2 1 . 9 3 1 1 . . . 6 . 3 Max in Single Turn 7 | . 1 . . . . 1 1 1 1 1 . 1 . . 1 1 1 . . . 1 2 . 1 7 1 1 2 1 1 . 1 1 1 1 . . . 1 . 1 Garrison Access 1 | . . . . . . . . . . . . . . . . . . . . . . . . . . . . . . . . . . . . . . . . 1 . Garrison Relay 14 | . . . . . . . . 2 . 3 . 1 . . 3 . . . . . . . . . . . . . . . . 5 . . . . . . . . . Phase Generator 1 | . . . . . . . . . . . . . . . 1 . . . . . . . . . . . . . . . . . . . . . . . . . . Network Hub 2 | . . . . . . . . . . . . . . . . . . . . . . . . . 2 . . . . . . . . . . . . . . . . Energy Cycler 1 | . . . . . . . . . . . . . . . . . . . . . . 1 . . . . . . . . . . . . . . . . . . . Machines Repaired . | . . . . . . . . . . . . . . . . . . . . . . . . . . . . . . . . . . . . . . . . . . Machines Dismantled 4 | . . . . . . . . . . 2 . . . . 2 . . . . . . . . . . . . . . . . . . . . . . . . . . Machines Sabotaged 1 | . . . . . . . . . . . . . . . . . . . . . . . . . 1 . . . . . . . . . . . . . . . . Overloaded Fab Kills . | . . . . . . . . . . . . . . . . . . . . . . . . . . . . . . . . . . . . . . . . . . Hacking | -11 -10 -10 -9 -9 -9 -8 -8 -8 -8 -8 -8 -8 -8 -7 -7 -7 -7 -7 -7 -6 -6 -6 -6 -6 -6 -5 -5 -5 -5 -4 -4 -4 -4 -4 -4 -4 -3 -3 -3 -2 -1 --------- Run | Yrd Mat Min Mat Min Exi Min Mat Gar Mat Gar Mat Gar Mat Fac Gar Fac Low Low Zio Pro Fac Ext Cet Arc Hub Fac Upp Upp War Pro Fac Gar Fac Upp Upp Zhi Pro Res Tes Res Acc Machines Accessed 92 | . 7 . 8 . 2 . 9 3 9 3 4 1 2 2 2 2 3 . . . 7 . . . 1 4 . 1 5 . 2 3 2 . . 4 . 2 2 . 2 Terminals 46 | . 6 . 5 . . . 7 3 6 3 1 1 1 . 2 2 . . . . 2 . . . 1 . . . . . . 3 1 . . . . . 1 . 1 Fabricators 4 | . . . . . . . . . . . . . . . . . . . . . 2 . . . . 1 . . . . . . . . . . . . . . 1 Repair Stations 12 | . 1 . 2 . . . . . 1 . 1 . 1 1 . . . . . . 2 . . . . . . . . . . . 1 . . . . 1 1 . . Recycling Units 3 | . . . . . . . . . . . 1 . . . . . . . . . . . . . . 2 . . . . . . . . . . . . . . . Scanalyzers 7 | . . . 1 . . . 1 . 1 . . . . . . . . . . . 1 . . . . 1 . . . . 1 . . . . . . 1 . . . Garrison Access 5 | . . . . . . . 1 . 1 . 1 . . 1 . . . . . . . . . . . . . . . . 1 . . . . . . . . . . Total Hacks 271 | . 19 . 22 . 2 . 25 5 26 5 11 1 3 10 3 7 5 . . . 23 . . . 2 11 . 1 15 . 15 9 11 . . 17 . 10 7 . 6 Successful 150 | . 9 . 14 . 2 . 11 . 15 1 7 1 1 4 1 4 5 . . . 13 . . . 1 4 . 1 15 . 5 4 5 . . 17 . 4 4 . 2 Failed 120 | . 10 . 7 . . . 14 5 11 4 4 . 2 6 2 3 . . . . 10 . . . 1 7 . . . . 10 5 6 . . . . 6 3 . 4 Catastrophic 31 | . 2 . . . . . 2 2 4 3 . . 1 . . 2 . . . . 2 . . . . 4 . . . . 6 1 1 . . . . . . . 1 Database Lockouts 1 | . . . 1 . . . . . . . . . . . . . . . . . . . . . . . . . . . . . . . . . . . . . . Manual 85 | . 12 . 6 . 1 . 15 . 14 . 6 . 1 3 . 3 . . . . 5 . . . 2 2 . . . . . 3 3 . . . . . . . 9 Terminals 116 | . 16 . 14 . . . 18 5 14 5 5 1 1 . 3 7 . . . . 4 . . . 2 . . . . . . 9 6 . . . . . 2 . 4 Fabricators 12 | . . . . . . . . . . . . . . . . . . . . . 6 . . . . 4 . . . . . . . . . . . . . . 2 Repair Stations 45 | . 3 . 5 . . . . . 3 . 3 . 2 6 . . . . . . 10 . . . . . . . . . . . 5 . . . . 3 5 . . Recycling Units 5 | . . . . . . . . . . . 1 . . . . . . . . . . . . . . 4 . . . . . . . . . . . . . . . Scanalyzers 39 | . . . 3 . . . 5 . 6 . . . . . . . . . . . 3 . . . . 3 . . . . 12 . . . . . . 7 . . . Garrison Access 14 | . . . . . . . 2 . 3 . 2 . . 4 . . . . . . . . . . . . . . . . 3 . . . . . . . . . . Terminal Hacks 77 | . 8 . 6 . 2 . 5 . 4 1 1 1 . . 1 3 5 . . . 2 . . . . . . 1 15 . . 2 2 . . 17 . . 1 . . Record 18 | . . . . . 1 . . . . . . . . . . . 3 . . . . . . . . . . . 9 . . . . . . 5 . . . . . Part Schematic 6 | . 2 . . . . . . . . . . . . . . . . . . . . . . . . . . . . . . . . . . 4 . . . . . Robot Analysis 9 | . 3 . 1 . . . . . . . . . . . . . . . . . . . . . . . . . . . . . 1 . . 4 . . . . . Prototype ID Bank 11 | . 2 . . . . . . . . . . . . . . . . . . . . . . . . . . . 5 . . . . . . 4 . . . . . Open Door 5 | . . . . . . . . . . . . . . . . . 2 . . . . . . . . . . 1 1 . . . . . . . . . 1 . . Branch Access Points 2 | . . . . . . . . . . . . . . . . 1 . . . . . . . . . . . . . . . . 1 . . . . . . . . Fabricator Index 1 | . . . . . . . . . . . . . . . . . . . . . 1 . . . . . . . . . . . . . . . . . . . . Scanalyzer Index 3 | . . . 1 . . . 1 . 1 . . . . . . . . . . . . . . . . . . . . . . . . . . . . . . . . Unreport Threat 5 | . . . . . . . . . 2 . 1 . . . . 2 . . . . . . . . . . . . . . . . . . . . . . . . . Locate Traps 2 | . . . 1 . . . . . . . . . . . . . . . . . 1 . . . . . . . . . . . . . . . . . . . . Reinforcement Status 1 | . . . 1 . . . . . . . . . . . . . . . . . . . . . . . . . . . . . . . . . . . . . . Zone Layout 8 | . 1 . 2 . . . 4 . 1 . . . . . . . . . . . . . . . . . . . . . . . . . . . . . . . . Garrison Registry 2 | . . . . . . . . . . 1 . . . . . . . . . . . . . . . . . . . . . 1 . . . . . . . . . Patrol Navigation 1 | . . . . . . . . . . . . . . . . . . . . . . . . . . . . . . . . 1 . . . . . . . . . Security Stations 2 | . . . . . . . . . . . . 1 . . 1 . . . . . . . . . . . . . . . . . . . . . . . . . . Proto ID Catalog 1 | . . . . . 1 . . . . . . . . . . . . . . . . . . . . . . . . . . . . . . . . . . . . Fabricator Hacks 6 | . . . . . . . . . . . . . . . . . . . . . 3 . . . . 1 . . . . . . . . . . . . . . 2 Network Status 2 | . . . . . . . . . . . . . . . . . . . . . 1 . . . . 1 . . . . . . . . . . . . . . . Load Schematic 2 | . . . . . . . . . . . . . . . . . . . . . 1 . . . . . . . . . . . . . . . . . . . 1 Build 2 | . . . . . . . . . . . . . . . . . . . . . 1 . . . . . . . . . . . . . . . . . . . 1 Repair Station Hacks 25 | . 1 . 4 . . . . . 2 . 2 . 1 2 . . . . . . 6 . . . . . . . . . . . 2 . . . . 2 3 . . Scan Component 13 | . . . 2 . . . . . 1 . 1 . 1 1 . . . . . . 3 . . . . . . . . . . . 1 . . . . 1 2 . . Repair 11 | . . . 2 . . . . . 1 . 1 . . 1 . . . . . . 3 . . . . . . . . . . . 1 . . . . 1 1 . . Refit 1 | . 1 . . . . . . . . . . . . . . . . . . . . . . . . . . . . . . . . . . . . . . . . Recycling Unit Hacks 1 | . . . . . . . . . . . 1 . . . . . . . . . . . . . . . . . . . . . . . . . . . . . . Retrieve Components 1 | . . . . . . . . . . . 1 . . . . . . . . . . . . . . . . . . . . . . . . . . . . . . Scanalyzer 19 | . . . 2 . . . 2 . 6 . . . . . . . . . . . . . . . . 3 . . . . 4 . . . . . . 2 . . . Insert Component 6 | . . . 1 . . . . . 2 . . . . . . . . . . . . . . . . . . . . . 3 . . . . . . . . . . Analyze 5 | . . . 1 . . . . . 3 . . . . . . . . . . . . . . . . . . . . . 1 . . . . . . . . . . Retrieve Study 8 | . . . . . . . 2 . 1 . . . . . . . . . . . . . . . . 3 . . . . . . . . . . . 2 . . . Garrison Access Hacks 5 | . . . . . . . 1 . 1 . 1 . . 1 . . . . . . . . . . . . . . . . 1 . . . . . . . . . . Unlock Access 5 | . . . . . . . 1 . 1 . 1 . . 1 . . . . . . . . . . . . . . . . 1 . . . . . . . . . . Unauthorized Hacks 17 | . . . 2 . . . 3 . 2 . 2 . . 1 . 1 . . . . 2 . . . 1 . . . . . . 2 1 . . . . . . . . Terminals 11 | . . . 2 . . . 2 . 1 . 1 . . . . 1 . . . . 1 . . . 1 . . . . . . 2 . . . . . . . . . Track 1 | . . . . . . . . . . . . . . . . . . . . . . . . . . . . . . . . 1 . . . . . . . . . Assimilate 1 | . . . . . . . . . . . . . . . . 1 . . . . . . . . . . . . . . . . . . . . . . . . . Botnet 7 | . . . 2 . . . 2 . 1 . 1 . . . . . . . . . 1 . . . . . . . . . . . . . . . . . . . . Disrupt 1 | . . . . . . . . . . . . . . . . . . . . . . . . . . . . . . . . 1 . . . . . . . . . Sabotage 1 | . . . . . . . . . . . . . . . . . . . . . . . . . 1 . . . . . . . . . . . . . . . . Fabricators 1 | . . . . . . . . . . . . . . . . . . . . . 1 . . . . . . . . . . . . . . . . . . . . Liberate 1 | . . . . . . . . . . . . . . . . . . . . . 1 . . . . . . . . . . . . . . . . . . . . Repair Stations 1 | . . . . . . . . . . . . . . . . . . . . . . . . . . . . . . . . . 1 . . . . . . . . Patch 1 | . . . . . . . . . . . . . . . . . . . . . . . . . . . . . . . . . 1 . . . . . . . . Recycling Units . | . . . . . . . . . . . . . . . . . . . . . . . . . . . . . . . . . . . . . . . . . . Scanalyzers . | . . . . . . . . . . . . . . . . . . . . . . . . . . . . . . . . . . . . . . . . . . Garrison Access 4 | . . . . . . . 1 . 1 . 1 . . 1 . . . . . . . . . . . . . . . . . . . . . . . . . . . Reprogram 4 | . . . . . . . 1 . 1 . 1 . . 1 . . . . . . . . . . . . . . . . . . . . . . . . . . . Data Cores Recovered 8 | . . . . . . . . . 1 . . . . 1 . . . . . . 2 1 . . . . . . . . . . 1 . . . . . . . 2 Used 2 | . . . . . . . . . . . . . . . . . . . . . 1 . . . . . . . . . . . . . . . . . . . 1 Hacking Detections 68 | . 6 . 6 . . . 8 3 9 3 3 1 2 2 2 2 . . . . 7 . . . 1 3 . . . . 2 1 2 . . . . 2 1 . 2 Full Trace Events 10 | . 1 . 1 . . . 1 1 1 1 . . . 1 . . . . . . 2 . . . . . . . . . . . . . . . . . . . 1 Feedback Events . | . . . . . . . . . . . . . . . . . . . . . . . . . . . . . . . . . . . . . . . . . . Feedback Blocked . | . . . . . . . . . . . . . . . . . . . . . . . . . . . . . . . . . . . . . . . . . . Robot Schematics Acquired 4 | . . . . . . . . . . . . . . . . . . . 4 . . . . . . . . . . . . . . . . . . . . . . Robots Built 2 | . . . . . . . . . . . . . . . . . . . . . . . . . . . . . . . . . . . . . . . . . 2 Authchips 1 | . . . . . . . . . . . . . . . . . . . . . . . . . . . . . . . . . . . . . . . . . 1 Time 68 | . . . . . . . . . . . . . . . . . . . . . . . . . . . . . . . . . . . . . . . . . 68 Total Robot Build Rating 16 | . . . . . . . . . . . . . . . . . . . . . . . . . . . . . . . . . . . . . . . . . 16 Part Schematics Acquired 27 | . 2 . 1 . . . . . 2 . . . . . . . . . 13 . . . . . . . . . . . 1 . . . . 4 . . 4 . . Parts Built 2 | . . . . . . . . . . . . . . . . . . . . . 2 . . . . . . . . . . . . . . . . . . . . Authchips 1 | . . . . . . . . . . . . . . . . . . . . . 1 . . . . . . . . . . . . . . . . . . . . Time 84 | . . . . . . . . . . . . . . . . . . . . . 84 . . . . . . . . . . . . . . . . . . . . Total Part Build Rating 8 | . . . . . . . . . . . . . . . . . . . . . 8 . . . . . . . . . . . . . . . . . . . . Part Studies Acquired 8 | . . . . . . . 2 . 1 . . . . . . . . . . . . . . . . 3 . . . . . . . . . . . 2 . . . Parts Repaired 11 | . . . 2 . . . . . 1 . 1 . . 1 . . . . . . 3 . . . . . . . . . . . 1 . . . . 1 1 . . Time 426 | . . . 52 . . . . . 60 . 44 . . 22 . . . . . . 138 . . . . . . . . . . . 28 . . . . 33 49 . . Parts Recycled . | . . . . . . . . . . . . . . . . . . . . . . . . . . . . . . . . . . . . . . . . . . Recycled Matter . | . . . . . . . . . . . . . . . . . . . . . . . . . . . . . . . . . . . . . . . . . . Retrieved Matter . | . . . . . . . . . . . . . . . . . . . . . . . . . . . . . . . . . . . . . . . . . . Retrieved Components 2 | . . . . . . . . . . . 2 . . . . . . . . . . . . . . . . . . . . . . . . . . . . . . Parts Scanalyzed 4 | . . . 1 . . . . . 2 . . . . . . . . . . . . . . . . . . . . . 1 . . . . . . . . . . Part Schematics Acquired 4 | . . . 1 . . . . . 2 . . . . . . . . . . . . . . . . . . . . . 1 . . . . . . . . . . Parts Damaged . | . . . . . . . . . . . . . . . . . . . . . . . . . . . . . . . . . . . . . . . . . . Bothacking | -11 -10 -10 -9 -9 -9 -8 -8 -8 -8 -8 -8 -8 -8 -7 -7 -7 -7 -7 -7 -6 -6 -6 -6 -6 -6 -5 -5 -5 -5 -4 -4 -4 -4 -4 -4 -4 -3 -3 -3 -2 -1 ------------ Run | Yrd Mat Min Mat Min Exi Min Mat Gar Mat Gar Mat Gar Mat Fac Gar Fac Low Low Zio Pro Fac Ext Cet Arc Hub Fac Upp Upp War Pro Fac Gar Fac Upp Upp Zhi Pro Res Tes Res Acc Used RIF Installer . | . . . . . . . . . . . . . . . . . . . . . . . . . . . . . . . . . . . . . . . . . . Robots Hacked 10 | . . . . 1 . . . . . . . . . . . . . . 2 . . 1 . 1 . . . . 3 . . . . . . . . . . . 2 Non-combat 2 | . . . . . . . . . . . . . . . . . . . . . . 1 . 1 . . . . . . . . . . . . . . . . . Combat 6 | . . . . 1 . . . . . . . . . . . . . . 2 . . . . . . . . . 3 . . . . . . . . . . . . Robot Hacks Applied 8 | . . . . 1 . . . . . . . . . . . . . . 2 . . 1 . 1 . . . . 3 . . . . . . . . . . . . parse_system 6 | . . . . 1 . . . . . . . . . . . . . . 2 . . . . . . . . . 3 . . . . . . . . . . . . no_distress 1 | . . . . . . . . . . . . . . . . . . . . . . 1 . . . . . . . . . . . . . . . . . . . check_alert 1 | . . . . . . . . . . . . . . . . . . . . . . . . 1 . . . . . . . . . . . . . . . . . Manual 2 | . . . . . . . . . . . . . . . . . . . . . . . . . . . . . . . . . . . . . . . . . 2 Relay Couplers Released 53 | . . . . . . . . 8 . 10 . 4 . . 12 . . . . . . . . . . . . . . . . 16 . . . . . . . 3 . Machine Destruction 53 | . . . . . . . . 8 . 10 . 4 . . 12 . . . . . . . . . . . . . . . . 16 . . . . . . . 3 . Fabnet Peak Effective % . | . . . . . . . . . . . . . . . . . . . . . . . . . . . . . . . . . . . . . . . . . . Robots Rewired 66 | . . . . . 5 . . 7 . 3 . . . . . . . . . . . 19 . . . . 2 1 5 . . 16 . 6 2 . . . . . . Allies Hacked 3 | . . . . . . . . . . . . . . . . . . . . . . . . . . . . . . . . . 3 . . . . . . . . Hacks Repelled . | . . . . . . . . . . . . . . . . . . . . . . . . . . . . . . . . . . . . . . . . . . Allies | -11 -10 -10 -9 -9 -9 -8 -8 -8 -8 -8 -8 -8 -8 -7 -7 -7 -7 -7 -7 -6 -6 -6 -6 -6 -6 -5 -5 -5 -5 -4 -4 -4 -4 -4 -4 -4 -3 -3 -3 -2 -1 -------- Run | Yrd Mat Min Mat Min Exi Min Mat Gar Mat Gar Mat Gar Mat Fac Gar Fac Low Low Zio Pro Fac Ext Cet Arc Hub Fac Upp Upp War Pro Fac Gar Fac Upp Upp Zhi Pro Res Tes Res Acc Total Allies 93 | . . . . . 5 . 2 7 3 3 1 . . 3 2 1 . . 5 . . 22 . . 1 . 2 1 5 . . 18 . 6 2 . . . . . 4 Largest Group 20 | . . . . . 5 5 2 9 9 3 2 1 . 3 3 1 . . 5 5 . 20 20 13 12 . 2 2 6 6 6 13 12 4 4 2 2 . . . 2 Highest-Rated Group 676 | . . . . . 66 66 30 223 223 84 59 16 . 48 50 26 . . 149 149 . 563 563 368 343 . 59 59 265 265 265 676 629 171 164 95 95 . . . 438 Highest-Rated Ally 219 | . . . . . 21 21 15 40 40 39 39 16 . 16 25 26 . . 31 31 . 39 39 39 39 . 30 30 64 64 64 148 148 47 48 48 48 . . . 219 Initial Warlord ECA Mod 25 | . . . . . . . . . 6 6 13 13 14 13 13 21 21 21 21 20 20 19 19 19 19 18 17 17 17 16 16 16 25 25 25 25 24 24 24 23 22 Warlord Squad Rendezvous 2 | . . . . . . . . . . . . . . . . . . . . . 1 . . . . 1 . . . . . . . . . . . . . . . Geek 1 | . . . . . . . . . . . . . . . . . . . . . 1 . . . . . . . . . . . . . . . . . . . . Chimera 1 | . . . . . . . . . . . . . . . . . . . . . . . . . . 1 . . . . . . . . . . . . . . . Total Orders 71 | . . . . . . . . . . . 2 . . . . 2 . . . . 4 4 . 2 5 1 . . . 5 . 12 1 3 2 2 4 5 1 2 14 STAY 21 | . . . . . . . . . . . 2 . . . . 1 . . . . . . . 1 . . . . . 2 . 6 . 3 1 1 4 . . . . ROAM 1 | . . . . . . . . . . . . . . . . . . . . . . . . . . . . . . . . . . . . . . . . . 1 FOLLOW 14 | . . . . . . . . . . . . . . . . 1 . . . . . . . 1 . . . . . 3 . 6 . . 1 1 . . . . 1 RETURN 35 | . . . . . . . . . . . . . . . . . . . . . 4 4 . . 5 1 . . . . . . 1 . . . . 5 1 2 12 Ally Attacks 874 | . . . . . . 29 . . 91 34 4 8 . . 21 . . . . 44 . 3 56 16 54 . 7 7 23 33 . 134 157 10 26 . 3 . . . 114 Total Damage 26906 | . . . . . . 481 . . 2383 627 110 65 . . 287 . . . . 738 . 74 1236 350 855 . 85 87 699 686 . 3361 4372 366 725 . 86 . . . 9233 Kills 166 | . . . . . . 5 . . 25 4 2 1 . . 4 . . . . 9 . 1 9 4 8 . . . 5 5 . 20 20 2 4 . . . . . 38 Allies Corrupted 5 | . . . . . . . . . . . . . . . . . . . . . . 1 . . . . . 1 . . . . 1 1 . . . . . . 1 Allies Melted 2 | . . . . . . . . . . . . . . . 1 . . . . . 1 . . . . . . . . . . . . . . . . . . . . Intel | -11 -10 -10 -9 -9 -9 -8 -8 -8 -8 -8 -8 -8 -8 -7 -7 -7 -7 -7 -7 -6 -6 -6 -6 -6 -6 -5 -5 -5 -5 -4 -4 -4 -4 -4 -4 -4 -3 -3 -3 -2 -1 ------- Run | Yrd Mat Min Mat Min Exi Min Mat Gar Mat Gar Mat Gar Mat Fac Gar Fac Low Low Zio Pro Fac Ext Cet Arc Hub Fac Upp Upp War Pro Fac Gar Fac Upp Upp Zhi Pro Res Tes Res Acc Active Infowar (turns) 23760 | . . . . . . . 1918 1944 844 . . . 1 116 93 129 2024 1284 1908 1236 982 88 . . . 467 1019 971 636 710 81 648 715 1277 523 100 775 398 813 1039 1021 Optics 1 | . . . . . . . . . . . . . . . . . . . . . . . . . . . . . 1 . . . . . . . . . . . . Sensors 17699 | . . . . . . . . . . . . . . 116 . 129 2024 1284 1908 1236 982 88 . . . 467 1019 971 635 710 74 . 568 1276 523 100 775 398 742 1039 635 Seismic 4706 | . . . . . . . 1918 1944 844 . . . . . . . . . . . . . . . . . . . . . . . . . . . . . . . . Spoofing 148 | . . . . . . . . . . . . . . . . . . . . . . . . . . . . . . . . . 147 1 . . . . . . . Jamming 1824 | . . . . . . . . . . . . . . . 93 . . . . . . . . . . . . . . . 80 648 . . . . . . 71 . 932 ECM 1 | . . . . . . . . . . . . . 1 . . . . . . . . . . . . . . . . . . . . . . . . . . . . Robot Analysis Total 9 | . 3 . 1 . . . . . . . . . . . . . . . . . . . . . . . . . . . . . 1 . . 4 . . . . . Derelict Logs Recovered 17 | . . 2 . 1 . . . . . . . . . . . . 3 1 2 1 . . . . . . 1 2 . 1 . . . 1 2 . . . . . . Drone Launches 35 | . . . . . . . . . . . . . . . . . . . . . 4 4 . . 5 1 . . . . . . 1 . . . . 5 1 2 12 Drone Recoveries 35 | . . . . . . . . . . . . . . . . . . . . . 4 4 . . 5 1 . . . . . . 1 . . . . 5 1 2 12 Exploration | -11 -10 -10 -9 -9 -9 -8 -8 -8 -8 -8 -8 -8 -8 -7 -7 -7 -7 -7 -7 -6 -6 -6 -6 -6 -6 -5 -5 -5 -5 -4 -4 -4 -4 -4 -4 -4 -3 -3 -3 -2 -1 ------------- Run | Yrd Mat Min Mat Min Exi Min Mat Gar Mat Gar Mat Gar Mat Fac Gar Fac Low Low Zio Pro Fac Ext Cet Arc Hub Fac Upp Upp War Pro Fac Gar Fac Upp Upp Zhi Pro Res Tes Res Acc Turns Passed 47422 | 121 971 519 1206 296 779 1334 1922 1944 1566 1413 546 735 750 376 1265 641 2557 1422 1928 1599 1771 2700 438 607 898 1140 1129 1620 1217 980 81 1521 1035 1564 741 328 873 840 1321 1039 1689 Spaces Moved 21086 | 62 479 306 492 177 404 532 757 878 671 553 189 281 303 154 508 281 1089 673 904 698 606 1000 167 285 317 551 621 832 676 454 41 709 469 805 391 179 384 429 595 555 629 Core 5 | 5 . . . . . . . . . . . . . . . . . . . . . . . . . . . . . . . . . . . . . . . . . Treads 21081 | 57 479 306 492 177 404 532 757 878 671 553 189 281 303 154 508 281 1089 673 904 698 606 1000 167 285 317 551 621 832 676 454 41 709 469 805 391 179 384 429 595 555 629 Legs . | . . . . . . . . . . . . . . . . . . . . . . . . . . . . . . . . . . . . . . . . . . Wheels . | . . . . . . . . . . . . . . . . . . . . . . . . . . . . . . . . . . . . . . . . . . Hover . | . . . . . . . . . . . . . . . . . . . . . . . . . . . . . . . . . . . . . . . . . . Flight . | . . . . . . . . . . . . . . . . . . . . . . . . . . . . . . . . . . . . . . . . . . Fastest Speed 50 | 50 160 160 160 160 160 240 200 200 200 200 200 200 200 200 200 200 200 200 200 210 210 160 160 160 160 160 160 160 160 163 163 163 163 163 163 160 163 152 152 150 150 Average Speed 185 | 151 160 160 160 160 180 240 211 200 200 200 200 200 200 200 200 200 200 200 208 210 217 231 211 171 204 160 160 160 160 163 163 163 163 163 163 162 163 154 155 155 178 Slowest Speed 240 | 160 160 160 160 160 240 240 240 200 200 200 200 200 200 200 200 200 200 200 210 210 220 240 240 240 240 213 160 160 163 163 163 163 163 163 163 163 163 163 160 160 230 Overloaded Moves . | . . . . . . . . . . . . . . . . . . . . . . . . . . . . . . . . . . . . . . . . . . Propulsion Burnouts . | . . . . . . . . . . . . . . . . . . . . . . . . . . . . . . . . . . . . . . . . . . Robots Hopped . | . . . . . . . . . . . . . . . . . . . . . . . . . . . . . . . . . . . . . . . . . . Potential Cave-ins 2 | . . . . . . . . . . . . . . . . . . . . . . . . . . . . . . . . . . . 2 . . . . . . Cave-ins Triggered . | . . . . . . . . . . . . . . . . . . . . . . . . . . . . . . . . . . . . . . . . . . Exploration Rate (%) 55 | 5 78 65 41 47 89 97 69 93 65 67 26 41 30 5 67 11 95 94 83 86 23 74 57 96 40 17 88 90 77 59 3 75 14 76 59 60 61 15 57 23 12 Regions Visited 41 Branch Regions 21 Pre-discovered Areas 12 | . . 2 . 1 1 . . . . . . . . . . . 2 . . 1 . . . . . . . . 1 1 . . . . . 3 . . . . . Known Exits Taken 26 | . . . . . . . 1 . 1 . 1 . . 1 . 1 1 1 1 1 1 1 . . 1 1 1 1 1 1 1 . 1 1 1 1 1 1 1 1 . Unknown Exits Taken 10 | 1 1 1 1 1 1 1 . . . . . . 1 . . . . . . . . . 1 1 . . . . . . . . . . . . . . . . . Scrap Searched 29 | . . 1 . 1 . 1 . . . . . . . . . . 3 5 4 1 . . . . . . 5 3 . . . . . 2 2 . 1 . . . . Spaces Dug 103 | . . . . . . . 3 3 1 1 2 7 . 1 7 2 10 1 . 4 3 . . . 2 12 5 . . 7 1 10 2 6 4 . 1 3 3 . 2 Terrain Destroyed 1216 | . . . . . . . 60 3 15 40 16 49 25 1 23 3 20 16 . 54 9 21 1 6 196 43 16 31 48 64 1 31 61 109 106 . 62 3 15 9 59 Melee 41 | . . . . . . . 3 3 1 1 2 7 . 1 7 . . 1 . . . . . . . . . . . . . 8 1 . . . . 3 3 . . Projectile 254 | . . . . . . . . . . . . 1 . . . 3 17 1 . 10 9 2 1 6 19 43 15 16 2 18 1 6 25 15 9 . 4 . 12 9 10 AOE 916 | . . . . . . . 57 . 14 39 14 41 25 . 16 . 3 14 . 44 . 19 . . 177 . . 15 46 46 . 17 35 94 97 . 58 . . . 45 Terrain Rammed . | . . . . . . . . . . . . . . . . . . . . . . . . . . . . . . . . . . . . . . . . . . Walls Destroyed . | . . . . . . . . . . . . . . . . . . . . . . . . . . . . . . . . . . . . . . . . . . Machines Disabled . | . . . . . . . . . . . . . . . . . . . . . . . . . . . . . . . . . . . . . . . . . . Actions | -11 -10 -10 -9 -9 -9 -8 -8 -8 -8 -8 -8 -8 -8 -7 -7 -7 -7 -7 -7 -6 -6 -6 -6 -6 -6 -5 -5 -5 -5 -4 -4 -4 -4 -4 -4 -4 -3 -3 -3 -2 -1 --------- Run | Yrd Mat Min Mat Min Exi Min Mat Gar Mat Gar Mat Gar Mat Fac Gar Fac Low Low Zio Pro Fac Ext Cet Arc Hub Fac Upp Upp War Pro Fac Gar Fac Upp Upp Zhi Pro Res Tes Res Acc Total 27330 | 80 601 322 822 186 453 565 975 1043 857 758 322 393 399 211 656 333 1424 721 942 789 984 1264 240 358 484 705 700 1066 800 669 52 996 653 998 463 212 620 583 876 711 1044 Wait 3413 | 3 59 5 229 . . 17 68 25 102 72 80 40 30 34 39 15 260 15 . 41 275 121 25 34 118 51 29 173 36 160 6 128 126 86 37 . 205 116 143 121 289 Move 21042 | 61 478 305 491 176 403 531 756 875 670 552 188 280 302 153 507 280 1088 672 903 697 605 999 166 284 316 550 620 831 675 453 41 707 468 804 390 178 383 428 594 554 628 Hop . | . . . . . . . . . . . . . . . . . . . . . . . . . . . . . . . . . . . . . . . . . . Pick Up 212 | 7 8 1 11 1 4 2 25 2 8 9 3 2 4 5 1 3 10 3 7 2 14 3 13 3 . 2 1 6 7 4 . 3 . 2 . 4 4 4 9 7 8 Fast Attach 155 | 6 1 . 7 . . . 7 . 3 . 4 3 2 . . 1 . . 6 . 5 4 3 5 1 13 . 2 15 9 . . 4 9 . 8 1 7 22 5 2 Attach 62 | . 1 . 3 . . . 4 . 1 3 2 3 . 2 . . . . . 1 6 3 1 1 1 2 . . 3 1 1 . . 3 . 6 1 1 5 1 6 Detach 42 | . 2 . 1 . . . 2 . 1 . 2 2 . . . 1 . . 1 . 1 . 1 . 1 1 . . 4 3 . . . 2 . 2 2 1 5 . 7 Swap 484 | . 4 1 10 3 1 . 22 7 16 15 9 6 9 6 33 10 19 13 9 22 32 25 9 3 13 17 12 15 15 10 2 9 12 15 11 1 12 8 23 3 22 Drop 322 | . 4 1 18 1 3 1 21 4 17 9 5 2 10 2 6 3 10 3 13 3 13 11 16 6 . 10 2 8 27 13 . 1 3 8 . 10 5 7 29 11 6 Fire 1017 | 3 41 6 45 . 2 10 65 1 34 59 24 40 37 8 37 19 34 14 . 22 27 44 6 21 29 52 23 22 15 16 1 40 35 33 18 . 6 6 41 9 72 Melee 163 | . . . . 1 . . 4 24 1 10 2 11 . 1 16 . . 1 3 . 5 42 . 1 . 6 . . 3 . . 16 2 1 . 3 1 5 4 . . Ram . | . . . . . . . . . . . . . . . . . . . . . . . . . . . . . . . . . . . . . . . . . . Kick . | . . . . . . . . . . . . . . . . . . . . . . . . . . . . . . . . . . . . . . . . . . Crush 66 | . 3 3 7 4 . 4 1 . 4 . 3 . 5 . . 1 . . . . 1 9 . . 5 1 2 . . . 1 . 3 1 3 . . . 1 . 4 Escape Stasis 17 | . . . . . . . . . . 8 . 4 . . . . . . . . . 3 . . . . . . . . . 2 . . . . . . . . . Rewire 301 | . . . . . 40 . . 105 . 10 . . . . . . . . . . . . . . . . 11 7 . . . 90 . 34 4 . . . . . . Trap 6 | . . . . . . . . . . . . . . . . . 3 . . 1 . . . . . . . 2 . . . . . . . . . . . . . Miscellaneous 28 | . . . . . . . . . . 11 . . . . 17 . . . . . . . . . . . . . . . . . . . . . . . . . . Route ------- -11/Scrapyard -10/Materials (discovered 3 exits: *Mat x2 / [*Min]) -10/Mines -9/Materials -9/Mines (discovered 3 exits: *Mat x2 / *Exi) -9/Exiles -8/Mines (discovered 2 exits: *Mat x2) -8/Materials (discovered 3 exits: *Fac x2 / Gar) -8/Garrison (discovered 3 exits: *Mat x3) -8/Materials (discovered 2 exits: *Fac / Gar) -8/Garrison (discovered 4 exits: *Fac x3 / *Mat) -8/Materials -8/Garrison -8/Materials -7/Factory (discovered 2 exits: Sto / Gar) -7/Garrison (discovered 3 exits: *Fac x3) -7/Factory (discovered 3 exits: Sto / *Low x2) -7/Lower Caves (discovered 2 exits: *Low / *Zio) -7/Lower Caves (discovered 2 exits: *Fac / *Zio) -7/Zion (discovered 2 exits: Dee / *Pro) -6/Proximity Caves -6/Factory (discovered 5 exits: *Fac x4 / *Ext) -6/Extension (discovered 3 exits: *Fac x2 / *Cet) -6/Cetus (discovered 2 exits: *Fac / [*Arc]) -6/Archives (discovered 3 exits: *Fac / *Hub x2) -6/Hub_04(d) (discovered 4 exits: *Fac x4) -5/Factory (discovered 6 exits: Fac x4 / *Upp x2) -5/Upper Caves -5/Upper Caves (discovered 2 exits: *Fac / *War) -5/Warlord -4/Proximity Caves -4/Factory -4/Garrison (discovered 3 exits: *Fac x3) -4/Factory (discovered 2 exits: *Upp x2) -4/Upper Caves -4/Upper Caves -4/Zhirov -3/Proximity Caves -3/Research (discovered 6 exits: *Res x3 / Arm / *Tes x2) -3/Testing -2/Research (discovered 4 exits: *Acc x3 / Qua) -1/Access To Epsilon Eridani History --------- Turn | Location | Event 7 | -11/Scrapyard | Discovered new exit (range 16) 122 | -11/Scrapyard | Entered Materials 313 | -10/Materials | Build established: Mutant 552 | -10/Materials | Discovered new exit (range 12) 617 | -10/Materials | Discovered new exit (range 12) 914 | -10/Materials | Discovered new exit (range 16) 1093 | -10/Materials | Entered Mines 1338 | -10/Mines | Learned location of Zion (-7) 1441 | -10/Mines | Learned location of Storage (-7) 1492 | -10/Mines | Assembled infested the area 1554 | -10/Mines | A weapon hastily lodged in a ceiling crevice suddenly fell to the ground 1579 | -10/Mines | Discovered new exit (range 6) 1612 | -10/Mines | Entered Materials 1612 | -9/Materials | Evolved 2 slots: Propulsion x1, Utility x1 1935 | -9/Materials | Discovered new exit (range 13) 2131 | -9/Materials | Build established: Scavenger-Mutant 2134 | -9/Materials | Central database locked down 2478 | -9/Materials | Repaired Lgt. Armor Plating 2506 | -9/Materials | Repaired Lgt. Treads 2818 | -9/Materials | Entered Mines 2847 | -9/Mines | Discovered new exit (range 7) 2897 | -9/Mines | YI-UF0 nonchalantly dropped a Grenade Launcher on the ground 2906 | -9/Mines | Discovered new exit (range 10) 3108 | -9/Mines | Deemed a non-threat by the Exiles lab entrance 3108 | -9/Mines | Discovered new exit (range 5) 3114 | -9/Mines | Entered Exiles 3114 | -9/Exiles | Found Exiles lab destroyed 3640 | -9/Exiles | Opened EX-Vault 3651 | -9/Exiles | Found Cloak of Protection 3859 | -9/Exiles | Build established: Commander-Mutant 3867 | -9/Exiles | Discovered new exit (range 12) 3893 | -9/Exiles | Entered Mines 3893 | -8/Mines | Accompanied by 5 allies 3984 | -8/Mines | Lost 3 allies 4100 | -8/Mines | Discovered new exit (range 5) 4253 | -8/Mines | Build established: Scavenger-Mutant 5109 | -8/Mines | Discovered new exit (range 15) 5227 | -8/Mines | Entered Materials 5227 | -8/Materials | Evolved 2 slots: Utility x1, Weapon x1 5502 | -8/Materials | Discovered new exit (range 6) 5530 | -8/Materials | Build established: Scavenger-Gunner 6113 | -8/Materials | Discovered new exit (range 15) 6940 | -8/Materials | Garrison activated, responded to threat 7103 | -8/Materials | Identified exit to Garrison 7149 | -8/Materials | Entered Garrison 7149 | -8/Garrison | Discovered recently destroyed garrison 7149 | -8/Garrison | Accompanied by 2 allies 7549 | -8/Garrison | Garrison Relay disabled 7700 | -8/Garrison | Build established: Scavenger-Mutant 7926 | -8/Garrison | Discovered new exit (range 3) 8042 | -8/Garrison | Build established: Commander-Mutant 8208 | -8/Garrison | Discovered new exit (range 12) 8464 | -8/Garrison | Garrison Relay disabled 8526 | -8/Garrison | Discovered new exit (range 14) 8565 | -8/Garrison | Attempted to access garrison exit controls, blocked by remote lockdown 8854 | -8/Garrison | Attempted to access garrison exit controls, blocked by remote lockdown 8870 | -8/Garrison | Build established: Commander-Gunner 9093 | -8/Garrison | Entered Materials 9093 | -8/Materials | Accompanied by 9 allies 9211 | -8/Materials | Repaired Enh. Autogun 9797 | -8/Materials | Discovered new exit (range 13) 9893 | -8/Materials | First assault squad dispatched 9967 | -8/Materials | Lost 4 allies 10653 | -8/Materials | Identified exit to Garrison 10654 | -8/Materials | Garrison activated, responded to threat 10659 | -8/Materials | Entered Garrison 10659 | -8/Garrison | Accompanied by 3 allies 10797 | -8/Garrison | Triggered checkpoint 10863 | -8/Garrison | Garrison Relay disabled 10899 | -8/Garrison | Core integrity fell below 50% 10989 | -8/Garrison | Triggered checkpoint 10996 | -8/Garrison | Triggered checkpoint 11027 | -8/Garrison | Build established: Gunner 11151 | -8/Garrison | Spotted B-75 Beast 11166 | -8/Garrison | Discovered new exit (range 14) 11188 | -8/Garrison | Destroyed B-75 Beast 11347 | -8/Garrison | Triggered checkpoint 11477 | -8/Garrison | Build established: Tank 11671 | -8/Garrison | Triggered checkpoint 11708 | -8/Garrison | Discovered new exit (range 43) 11708 | -8/Garrison | Discovered new exit (range 18) 11708 | -8/Garrison | Discovered new exit (range 74) 11708 | -8/Garrison | Discovered new exit (range 42) 11747 | -8/Garrison | Garrison Relay disabled 11909 | -8/Garrison | Triggered checkpoint 11973 | -8/Garrison | Triggered checkpoint 12027 | -8/Garrison | Triggered checkpoint 12072 | -8/Garrison | Entered Materials 12072 | -8/Materials | Accompanied by 2 allies 12296 | -8/Materials | Repaired Imp. Medium Armor Plating 12472 | -8/Materials | First assault squad dispatched 12504 | -8/Materials | Garrison activated, responded to threat 12549 | -8/Materials | Destroyed 7 combat bots 12589 | -8/Materials | Identified exit to Garrison 12618 | -8/Materials | Entered Garrison 12618 | -8/Garrison | Accompanied by 1 ally 12638 | -8/Garrison | Triggered checkpoint 12682 | -8/Garrison | Triggered checkpoint 12721 | -8/Garrison | Garrison Relay disabled 12739 | -8/Garrison | Learned Factory security intel 12992 | -8/Garrison | Triggered checkpoint 13047 | -8/Garrison | Destroyed 8 combat bots 13136 | -8/Garrison | System corruption reached 10% 13300 | -8/Garrison | Triggered checkpoint 13322 | -8/Garrison | Core integrity fell below 20% 13335 | -8/Garrison | Discovered new exit (range 5) 13353 | -8/Garrison | Entered Materials 13437 | -8/Materials | Garrison activated, responded to threat 13461 | -8/Materials | Build established: Scavenger-Gunner 14049 | -8/Materials | Discovered new exit (range 15) 14103 | -8/Materials | Entered Factory 14103 | -7/Factory | Evolved 2 slots: Propulsion x1, Utility x1 14104 | -7/Factory | Identified exit to Storage 14212 | -7/Factory | Garrison activated, responded to threat 14298 | -7/Factory | Identified exit to Garrison 14416 | -7/Factory | Repaired Imp. Medium Armor Plating 14479 | -7/Factory | Entered Garrison 14479 | -7/Garrison | Accompanied by 3 allies 14563 | -7/Garrison | Triggered checkpoint 14606 | -7/Garrison | Garrison Relay disabled 14624 | -7/Garrison | Lost 3 allies 14783 | -7/Garrison | Triggered checkpoint 14822 | -7/Garrison | Destroyed 9 combat bots 15086 | -7/Garrison | Phase Generator disabled 15128 | -7/Garrison | Triggered checkpoint 15152 | -7/Garrison | Discovered new exit (range 11) 15180 | -7/Garrison | Garrison Relay disabled 15245 | -7/Garrison | Rescued a captive Derelict 15245 | -7/Garrison | Rescued a captive Derelict 15302 | -7/Garrison | Identified exit to Factory 15332 | -7/Garrison | Learned Factory security intel 15399 | -7/Garrison | Triggered checkpoint 15435 | -7/Garrison | Triggered checkpoint 15493 | -7/Garrison | Triggered checkpoint 15494 | -7/Garrison | Discovered exit to Factory (range 12) 15735 | -7/Garrison | Discovered exit to Factory (range 3) 15744 | -7/Garrison | Entered Factory 16085 | -7/Factory | Identified exit to Lower Caves 16385 | -7/Factory | Entered Lower Caves 16391 | -7/Lower Caves | Met a Warlord Commander 16392 | -7/Lower Caves | Learned location of Warlord (-5) 16393 | -7/Lower Caves | Warlord Commander delivered Encrypted Comm Array 16399 | -7/Lower Caves | Found Encrypted Comm Array 16605 | -7/Lower Caves | A Derelict revealed a hidden shortcut to a safe place 16607 | -7/Lower Caves | Identified exit to Zion 17707 | -7/Lower Caves | Identified exit to Lower Caves 17747 | -7/Lower Caves | Entered an active Warlord outpost 17776 | -7/Lower Caves | Learned Research security intel 17776 | -7/Lower Caves | Learned Armory garrison access intel 17852 | -7/Lower Caves | Learned Factory security intel 17879 | -7/Lower Caves | Encountered a Warlord checkpoint 18050 | -7/Lower Caves | Attacked by a delusional Derelict stockpiling parts 18269 | -7/Lower Caves | Learned Factory garrison access intel 18942 | -7/Lower Caves | Entered another Lower Caves area 19100 | -7/Lower Caves | Discovered new exit (range 12) 19287 | -7/Lower Caves | Attracted the attention of an 0b10 checkpoint 20003 | -7/Lower Caves | Learned Factory trap positions 20054 | -7/Lower Caves | Discovered exit to Zion (range 6) 20364 | -7/Lower Caves | Entered Zion 20846 | -7/Zion | Identified exit to Deep Caves 20848 | -7/Zion | Given the Hacking Drone Bay 20849 | -7/Zion | Found Prototype Device 20850 | -7/Zion | Identified Hacking Drone Bay 20980 | -7/Zion | Found Prototype Device 20980 | -7/Zion | Identified Mobile Refinery Mk. CCLXVII 21262 | -7/Zion | Gained Derelict followers 21356 | -7/Zion | Met Imprinter 21473 | -7/Zion | Found CR-A16's Pointy Stick 21586 | -7/Zion | Found Prototype Special Weapon 21586 | -7/Zion | Identified RU-N14's Throwing Claymores 21591 | -7/Zion | Found RU-N14's Throwing Claymores 21648 | -7/Zion | Identified exit to Proximity Caves 22292 | -7/Zion | Entered Proximity Caves 22292 | -6/Proximity Caves | Accompanied by 5 allies 22450 | -6/Proximity Caves | Spotter reported a threat 23020 | -6/Proximity Caves | Spotted B-75 Beast 23031 | -6/Proximity Caves | Allies destroyed B-75 Beast 23568 | -6/Proximity Caves | Lost 3 allies 23721 | -6/Proximity Caves | Learned location of Extension (-6) 23878 | -6/Proximity Caves | Discovered new exit (range 5) 23882 | -6/Proximity Caves | Identified exit to Factory 23891 | -6/Proximity Caves | Entered Factory 23891 | -6/Factory | Evolved 2 slots: Utility x1, Weapon x1 23892 | -6/Factory | Loaded intel: 78 trap records 23894 | -6/Factory | Loaded intel: 4 garrison access locations 24214 | -6/Factory | Joined by Warlord Geek squad 24297 | -6/Factory | Spotted B-75 Beast 24309 | -6/Factory | Revealed the true nature of CR-A16's Pointy Stick 24314 | -6/Factory | Destroyed B-75 Beast 24684 | -6/Factory | Fabricated Imp. Medium Armor Plating (x2) 25034 | -6/Factory | Discovered new exit (range 16) 25078 | -6/Factory | Identified exit to Factory 25344 | -6/Factory | Repaired Gauss Rifle 25470 | -6/Factory | Discovered new exit (range 7) 25493 | -6/Factory | Repaired Imp. Medium Armor Plating 25544 | -6/Factory | Repaired Imp. Medium Treads 25657 | -6/Factory | Identified exit to Extension 25662 | -6/Factory | Entered Extension 25995 | -6/Extension | Energy Cycler disabled 25995 | -6/Extension | Rescued a captive Derelict 25995 | -6/Extension | Rescued a captive Derelict 25997 | -6/Extension | Rescued a captive Derelict 25999 | -6/Extension | Rescued a captive Derelict 26004 | -6/Extension | Rescued a captive Derelict 26006 | -6/Extension | Rescued a captive Derelict 26008 | -6/Extension | Rescued a captive Derelict 26082 | -6/Extension | Spotted B-75 Beast 26147 | -6/Extension | Destroyed B-75 Beast 26193 | -6/Extension | Spotted B-75 Beast 26242 | -6/Extension | Destroyed B-75 Beast 26383 | -6/Extension | Extracted ID and sensor layout for unrecognized location from A7's data core 27926 | -6/Extension | Build established: Commander-Gunner 27992 | -6/Extension | Identified exit to Cetus 28270 | -6/Extension | Disrupted transfer network 28319 | -6/Extension | Destroyed 14 combat bots 28362 | -6/Extension | Entered Cetus 28362 | -6/Cetus | Accompanied by 20 allies 28391 | -6/Cetus | Spotted Cetus Guard 28391 | -6/Cetus | Spotted Cetus Guard 28397 | -6/Cetus | Spotted Cetus Guard 28397 | -6/Cetus | Spotted Cetus Guard 28410 | -6/Cetus | Allies destroyed Cetus Guard 28415 | -6/Cetus | Allies destroyed Cetus Guard 28421 | -6/Cetus | Allies destroyed Cetus Guard 28423 | -6/Cetus | Allies destroyed Cetus Guard 28452 | -6/Cetus | Lost 5 allies 28593 | -6/Cetus | Discovered new exit (range 15) 28635 | -6/Cetus | Spotted Cetus Guard 28635 | -6/Cetus | Spotted Cetus Guard 28640 | -6/Cetus | Spotted Cetus Guard 28641 | -6/Cetus | Allies destroyed Cetus Guard 28641 | -6/Cetus | Destroyed Cetus Guard 28641 | -6/Cetus | Spotted Cetus Guard 28649 | -6/Cetus | Allies destroyed Cetus Guard 28658 | -6/Cetus | Destroyed Cetus Guard 28669 | -6/Cetus | Discovered exit to Factory (range 15) 28673 | -6/Cetus | System corruption reached 10% 28688 | -6/Cetus | Met Revision 17 28800 | -6/Cetus | Entered Archives 28800 | -6/Archives | Accompanied by 13 allies 28870 | -6/Archives | Discovered exit to Factory (range 14) 28934 | -6/Archives | Discovered new exit (range 16) 29151 | -6/Archives | Discovered new exit (range 16) 29384 | -6/Archives | Build established: Commander-Tank 29407 | -6/Archives | Entered Hub_04(d) 29407 | -6/Hub_04(d) | Accompanied by 11 allies 29648 | -6/Hub_04(d) | Lost 10 allies 30052 | -6/Hub_04(d) | Build established: Scavenger-Tank 30072 | -6/Hub_04(d) | Network Hub disabled 30107 | -6/Hub_04(d) | Specialist reinforcements revealed to be Infiltrators 30200 | -6/Hub_04(d) | Network Hub disabled 30305 | -6/Hub_04(d) | Entered Factory 30305 | -5/Factory | Evolved 2 slots: Power x1, Propulsion x1 30613 | -5/Factory | Joined by Warlord Chimera squad 30933 | -5/Factory | Identified exit to Upper Caves 30934 | -5/Factory | Identified exit to Factory 31140 | -5/Factory | Build established: Scavenger-Gunner 31445 | -5/Factory | Entered Upper Caves 31677 | -5/Upper Caves | Attracted the attention of an 0b10 outpost 31984 | -5/Upper Caves | Learned 4 Factory zone layouts 32005 | -5/Upper Caves | Build established: Scavenger-Tank 32427 | -5/Upper Caves | Discovered new exit (range 16) 32521 | -5/Upper Caves | Identified exit to Upper Caves 32574 | -5/Upper Caves | Entered another Upper Caves area 32574 | -5/Upper Caves | Accompanied by 2 allies 32576 | -5/Upper Caves | Learned Factory terminal intel 32582 | -5/Upper Caves | Learned Factory terminal intel 32605 | -5/Upper Caves | Discovered exit to Factory (range 13) 33343 | -5/Upper Caves | Discovered new exit (range 12) 33626 | -5/Upper Caves | Attracted the attention of an 0b10 outpost 33666 | -5/Upper Caves | Destroyed 10 combat bots 34193 | -5/Upper Caves | Identified exit to Warlord 34194 | -5/Upper Caves | Entered Warlord 34194 | -5/Warlord | Accompanied by 1 ally 34249 | -5/Warlord | System corruption cleaned by Quarantine Array 34392 | -5/Warlord | Learned Armory security intel 34392 | -5/Warlord | Learned Factory scanalyzer intel 34392 | -5/Warlord | Learned Armory repair station intel 34392 | -5/Warlord | Learned Armory scanalyzer intel 34392 | -5/Warlord | Learned 4 Research zone layouts 34392 | -5/Warlord | Learned 4 Quarantine zone layouts 34392 | -5/Warlord | Learned 4 Quarantine zone layouts 34392 | -5/Warlord | Learned location of Armory (-3) 34782 | -5/Warlord | Found Prototype Device 34869 | -5/Warlord | Visited the Vortex Lab 34881 | -5/Warlord | Found Prototype Energy Cannon 34881 | -5/Warlord | Identified Vortex Cannon 34882 | -5/Warlord | Warlord's base attacked by MAIN.C 34885 | -5/Warlord | Found Vortex Cannon 34969 | -5/Warlord | Found Prototype Reactor 34969 | -5/Warlord | Identified Vortex Chain Reactor 34982 | -5/Warlord | Found Prototype Device 34982 | -5/Warlord | Identified Thermal Barrier 34991 | -5/Warlord | Found Prototype Processor 34991 | -5/Warlord | Identified Spectral Analyzer 35120 | -5/Warlord | Found Prototype Special Weapon 35120 | -5/Warlord | Identified RU-N14's Throwing Claymores v3 35130 | -5/Warlord | Found RU-N14's Throwing Claymores v3 35135 | -5/Warlord | Found RU-N14's Throwing Claymores v3 35158 | -5/Warlord | Met Warlord 35232 | -5/Warlord | Warlord forces counterattacked 35304 | -5/Warlord | Spotted Executioner 35310 | -5/Warlord | Spotted Striker 35310 | -5/Warlord | Destroyed Executioner 35316 | -5/Warlord | Spotted Executioner 35318 | -5/Warlord | Destroyed Executioner 35339 | -5/Warlord | Destroyed 10 combat bots 35342 | -5/Warlord | Lost 5 allies 35369 | -5/Warlord | Discovered new exit (range 12) 35384 | -5/Warlord | Identified exit to Proximity Caves 35411 | -5/Warlord | Entered Proximity Caves 35411 | -4/Proximity Caves | Accompanied by 6 allies 35432 | -4/Proximity Caves | Lost 3 allies 35482 | -4/Proximity Caves | Encountered a Derelict guarding a broken Freighter 35518 | -4/Proximity Caves | Spotter reported a threat 35559 | -4/Proximity Caves | Found Prototype Launcher 35559 | -4/Proximity Caves | Identified Ragnarok Missile Launcher 35562 | -4/Proximity Caves | Found Ragnarok Missile Launcher 35582 | -4/Proximity Caves | Found Prototype Device 35582 | -4/Proximity Caves | Identified Exp. Actuator Array 35601 | -4/Proximity Caves | Found Prototype Hackware 35724 | -4/Proximity Caves | Attracted the attention of an 0b10 checkpoint 35838 | -4/Proximity Caves | Build established: Commander-Tank 36335 | -4/Proximity Caves | Found Alien Artifact 36335 | -4/Proximity Caves | Identified Dimensional Node Initializer 36335 | -4/Proximity Caves | Initialized slip node 36359 | -4/Proximity Caves | Discovered exit to Factory (range 15) 36368 | -4/Proximity Caves | Learned location of Quarantine (-2) 36391 | -4/Proximity Caves | Entered Factory 36391 | -4/Factory | Accompanied by 6 allies 36391 | -4/Factory | Evolved 2 slots: Utility x2 36393 | -4/Factory | Loaded intel: 25 terminal locations 36394 | -4/Factory | Loaded intel: 4 scanalyzer locations 36437 | -4/Factory | Identified Wardrone Bay 36437 | -4/Factory | Watched by a mysterious "MATRIX" hacker 36437 | -4/Factory | Identified Exp. Hacking Suite 36466 | -4/Factory | Identified exit to Garrison 36472 | -4/Factory | Entered Garrison 36472 | -4/Garrison | Accompanied by 6 allies 36494 | -4/Garrison | Discovered new exit (range 55) 36494 | -4/Garrison | Discovered new exit (range 68) 36494 | -4/Garrison | Discovered new exit (range 40) 36528 | -4/Garrison | Garrison Relay disabled 36544 | -4/Garrison | Triggered checkpoint 36574 | -4/Garrison | Triggered checkpoint 36590 | -4/Garrison | Triggered checkpoint 36666 | -4/Garrison | Spotted B-75 Beast 36681 | -4/Garrison | Destroyed B-75 Beast 36707 | -4/Garrison | Lost 6 allies 36727 | -4/Garrison | Rewired B-90 Cyclops 36954 | -4/Garrison | Build established: Tank 37080 | -4/Garrison | Triggered checkpoint 37099 | -4/Garrison | Garrison Relay disabled 37184 | -4/Garrison | Triggered checkpoint 37414 | -4/Garrison | Lost 4 allies 37489 | -4/Garrison | Identified exit to Factory 37537 | -4/Garrison | Build established: Commander-Tank 37541 | -4/Garrison | Garrison Relay disabled 37544 | -4/Garrison | Triggered checkpoint 37555 | -4/Garrison | Found embedded Infiltrators 37728 | -4/Garrison | Attempted to access garrison exit controls, blocked by remote lockdown 37912 | -4/Garrison | Triggered checkpoint 37993 | -4/Garrison | Entered Factory 37993 | -4/Factory | Accompanied by 12 allies 37994 | -4/Factory | Loaded intel: 26 terminal locations 38493 | -4/Factory | First assault squad dispatched 38713 | -4/Factory | Identified exit to Upper Caves 38756 | -4/Factory | Lost 6 allies 38964 | -4/Factory | Destroyed 7 combat bots 39001 | -4/Factory | Repaired Lyr. Heavy Armor Plating 39028 | -4/Factory | Entered Upper Caves 39105 | -4/Upper Caves | Spotted B-86 Titan 39111 | -4/Upper Caves | Destroyed B-86 Titan 39124 | -4/Upper Caves | Found Hvy. Reflective Plating 39179 | -4/Upper Caves | Found Alien Artifact 39179 | -4/Upper Caves | Identified Core Expander 39179 | -4/Upper Caves | Installed Core Expander, added new Power slot 39239 | -4/Upper Caves | Encountered a Warlord checkpoint 39280 | -4/Upper Caves | Build established: Scavenger-Tank 39311 | -4/Upper Caves | Attracted the attention of an 0b10 outpost 39347 | -4/Upper Caves | Lost 3 allies 39614 | -4/Upper Caves | Attacked by a delusional Derelict stockpiling Unaware 39843 | -4/Upper Caves | Identified exit to Upper Caves 40495 | -4/Upper Caves | Attracted the attention of an 0b10 checkpoint 40592 | -4/Upper Caves | Entered another Upper Caves area 40592 | -4/Upper Caves | Accompanied by 4 allies 40731 | -4/Upper Caves | Lost 4 allies 40910 | -4/Upper Caves | Encountered a Warlord checkpoint 40983 | -4/Upper Caves | Learned Research terminal intel 41214 | -4/Upper Caves | Discovered new exit (range 2) 41214 | -4/Upper Caves | Identified exit to Zhirov 41245 | -4/Upper Caves | Learned Research security intel 41333 | -4/Upper Caves | Entered Zhirov 41333 | -4/Zhirov | Accompanied by 2 allies 41336 | -4/Zhirov | Discovered new exit (range 3) 41365 | -4/Zhirov | Met Zhirov 41401 | -4/Zhirov | Learned location of Testing (-3) 41401 | -4/Zhirov | Learned location of Command (-1) 41410 | -4/Zhirov | Zhirov requested help retrieving the SGEMP Prototype 41435 | -4/Zhirov | Found Alien Artifact 41435 | -4/Zhirov | Identified Integrated Dissipator 41435 | -4/Zhirov | Installed Integrated Dissipator, increased core heat dissipation (+20) 41546 | -4/Zhirov | Found Alien Artifact 41638 | -4/Zhirov | Build established: Scavenger-Mutant 41659 | -4/Zhirov | Identified exit to Proximity Caves 41661 | -4/Zhirov | Entered Proximity Caves 41661 | -3/Proximity Caves | Accompanied by 2 allies 41846 | -3/Proximity Caves | Received a Behemoth hack from an annoying Tinkerer 41951 | -3/Proximity Caves | Build established: Scavenger-Tank 42256 | -3/Proximity Caves | Spotted B-86 Titan 42265 | -3/Proximity Caves | Destroyed B-86 Titan 42433 | -3/Proximity Caves | Discovered new exit (range 11) 42460 | -3/Proximity Caves | Identified exit to Research 42534 | -3/Proximity Caves | Entered Research 42534 | -3/Research | Evolved 2 slots: Propulsion x1, Utility x1 42537 | -3/Research | Loaded intel: 24 terminal locations 42554 | -3/Research | Found Prototype Processor 42554 | -3/Research | Identified Exp. Signal Interpreter 42734 | -3/Research | Revision forces began assault on 0b10 42758 | -3/Research | Met up with Revision 17++ 42895 | -3/Research | Discovered new exit (range 15) 42920 | -3/Research | Identified exit to Research 42989 | -3/Research | Repaired Adv. KE Penetrator 43123 | -3/Research | Identified exit to Armory 43123 | -3/Research | Identified exit to Testing 43234 | -3/Research | Research terminal network offline 43374 | -3/Research | Entered Testing 43511 | -3/Testing | System corruption reached 10% 43773 | -3/Testing | Found Prototype Energy Cannon 43775 | -3/Testing | Identified Imp. Potential Cannon 44095 | -3/Testing | Repaired Adv. KE Penetrator? 44158 | -3/Testing | Found Prototype Device 44158 | -3/Testing | Identified Exp. Thermal Defense Suite 44341 | -3/Testing | Discovered exit to Research (range 5) 44579 | -3/Testing | Spotted PY-N778HPTLNZ 44617 | -3/Testing | Found Prototype Protection 44617 | -3/Testing | Identified Hvy. Regenerative Plating 44622 | -3/Testing | Found Prototype Protection 44622 | -3/Testing | Identified SHELL Armor 44695 | -3/Testing | Entered Research 44695 | -2/Research | Warlord forces began assault on 0b10 44695 | -2/Research | Evolved 2 slots: Utility x2 44696 | -2/Research | Identified exit to Quarantine 44716 | -2/Research | Identified exit to Access 44720 | -2/Research | Distinguished unit "Knights of the Pentagonal Table" dispatched to help 44720 | -2/Research | Distinguished unit "Bridgeowners Association" dispatched to help 44805 | -2/Research | Research machine network offline 44932 | -2/Research | Build established: Gunner 45267 | -2/Research | Borebot progress halted 45395 | -2/Research | Spotted Striker 45499 | -2/Research | Borebot progress halted 45528 | -2/Research | Found Prototype Device 45599 | -2/Research | Identified Exp. EM Disruption Field 45734 | -2/Research | Entered Access 45734 | -1/Access | Evolved 2 slots: Utility x2 45821 | -1/Access | Fabricated X-82 Rainmaker? 45870 | -1/Access | Garrison activated, responded to threat 45892 | -1/Access | Garrison activated, responded to threat 46573 | -1/Access | Discovered new exit (range 5) 46595 | -1/Access | Build established: Tank 46663 | -1/Access | Spotted B-99 Colossus 46666 | -1/Access | Spotted B-99 Colossus 46668 | -1/Access | Befriended a Behemoth using the annoying Tinkerer's hack 46669 | -1/Access | Befriended a Behemoth using the annoying Tinkerer's hack 46984 | -1/Access | First assault squad dispatched 47423 | *** | Escaped! Last Messages --------------- Weapon. 47385_ Destroyed Myomer Leg. 47386_ K-01 Serf collects debris. 47386_ G-73 Enforcer Phase Gun severed. 47386_ Wardrone follow-up attacks with Prototype Slashing Weapon. 47386_ Wardrone suffers critical hit (Burn). 47387_ R-10 Processor collects Adv. Target Analyzer. 47388_ Wardrone: "WARLORD FOREVER!" 47388_ G-73 Enforcer destroyed. 47389_ K-01 Serf collects debris. 47391_ Wardrone retrieved by Wardrone Bay (repair cost: 4). 47391_ R-10 Processor collects Lyr. Heavy Armor Plating. 47392_ K-01 Serf collects debris. 47393_ System corrupted: Heat flow error (+272). 47394_ U-05 Engineer builds a Wall. 47396_ K-01 Serf collects debris. 47402_ Acquired 13 matter. Map ----- +----------------------------------------------------+ | #!!#?# !! ??????? #????????????????????? | | # #?# ?????? " ?????^???????????????? | | # #?# ?????? ?????^???????????????? | | # #?# """#????? ?????????????????????? | | # #?# """#?????# #?????????????????????? | | # #?# R"#?????# ###############?? #???? | | +% #?# """#?????# # #?? #???? | | # #?? "" #?????# # #?? #???? | | # *#???? ???????# # #?? #???? | | #!=##????? ?????????# # ###+##### | | **%*########+############ %# # | | [%!%!=[[==%!=![% % # " # | | *!!!!=!**[!%*[=% % = """ # | | %!%#######%=############### """ # ] | | #+###?????#*!#?????????????# " # " ? | | | ?????#/=#?????????????# # """"? | | ?????#==#?????????????# # """"" | | ??????#=%#?????????????##############" """"" | | ???????#=!#?????###??????????????????## """" | | ????####[=####### ##########??######### " | | ????# !#=%*"" "" "??" # | | ???#%%#=[ % "" """" # | | ??# ###[= % "" /##### | | ??#??##!!=!! % u A | | #######???#[!!!% = %R % | | ?# ? ??#%!=!] ! @" """" | | ?+ ? ??#!|%% ==%! "??" | | ?? ? !##!!!!| ! "??" ###/##### | | ???? %##%%= %! % "??" #???????? | | ?????? %##=%[=!* [! "??" % #???????? | | ???##+#####[=####### ##########??#########???????? | | ???? #=!=#%!#[%[#####???????????????????????????? | | [???#!#*%[#%%#*###???????????????????????????????? | | ???# #####=%#*#?????????????????????????????????? | | ??# *!=!=%[###?????????????????????????????????? | | ??# =! [=%##??????????????????????????????????? | | ## [[ ==!#???????????????????????????????????? | | # =*=!*#???????????????????????????????????? | | + !]![!%[#???????????????????????????????????? | | #]!########???????????????????????????????????? | | #*!######?????????????????????????????????????? | | ?# #??????????????????????????????????????????? | | ?# #??????????????????????????????????????????? | | +### #?????? #????????????????????????????????? | | # #????????????????????????????????? | | + " #????????????????????????????????? | | # """ ??????????????????????????????????? | | "#??????????????????????????????????????????? | | ""#??????????????????????????????????????????? | | ""#??????????????????????????????????????????? | +----------------------------------------------------+ Best States ------------- Heat Dissipation 104 Energy Generation 69 Energy Capacity 915 Matter Stores 300 Matter Capacity 300 Sight Range 16 Robot Scan Range 19 Terrain Scan Density 10 Jamming Range 16 Base Temperature (-) 200 Armor Coverage 1800 Resistance: TH 30 Propulsion Shielding 90 Evasion (%) 40 Targeting Accuracy 13 Core Analysis 6 Recoil Reduction 6 Offensive Hacking 16 Defensive Hacking 12 Authchip Count 2 Item Schematics ----------------- Huge Storage Unit | -10/Materials | Hacked Hcp. Storage Unit | -10/Materials | Hacked Mak. Axe | -9/Materials | Scanalyzed Mak. Sensor Array | -8/Materials | Scanalyzed Imp. Medium Armor Plating | -8/Materials | Scanalyzed Flexi-carbon Leg | -7/Zion | Archive Matter Filter | -7/Zion | Archive Imp. Plasma Cutter | -7/Zion | Archive Energy Filter | -7/Zion | Archive Jamming Amplifier | -7/Zion | Archive EM Disruption Field | -7/Zion | Archive Imp. Medium Treads | -7/Zion | Archive Power Amplifier | -7/Zion | Archive Neutrino Core | -7/Zion | Archive Imp. System Shield | -7/Zion | Archive Hrd. Heavy Armor Plating | -7/Zion | Archive Imp. Melee Analysis Suite | -7/Zion | Archive Focal Shield | -7/Zion | Archive Hds. Centrium Heavy Treads | -4/Factory | Scanalyzed Assault Drone Bay | -4/Zhirov | Free Exp. Heat Sink | -4/Zhirov | Free Exp. Optical Array | -4/Zhirov | Free Imp. Arc Thrower | -4/Zhirov | Free Com. Mass Driver | -3/Testing | Archive Plasma Sword | -3/Testing | Archive Imp. Diametric Drive | -3/Testing | Archive Imp. Lightning Gun | -3/Testing | Archive Robot Schematics ------------------ X-82 Rainmaker | -7/Zion | Archive B-36 Bruiser | -7/Zion | Archive C-17 Slicer | -7/Zion | Archive B-48 Gladiator | -7/Zion | Archive Fabricated ------------ Imp. Medium Armor Plating | x2 | -6/Factory | Authchip X-82 Rainmaker | x2 | -1/Access | Authchip Repaired ---------- Lgt. Armor Plating | 13% | -9/Materials Lgt. Treads | 63% | -9/Materials Enh. Autogun | 52% | -8/Materials Imp. Medium Armor Plating | 43% | -8/Materials Imp. Medium Armor Plating | 20% | -7/Factory Gauss Rifle | 29% | -6/Factory Imp. Medium Armor Plating | 43% | -6/Factory Imp. Medium Treads | 50% | -6/Factory Lyr. Heavy Armor Plating | 1% | -4/Factory Adv. KE Penetrator | 47% | -3/Research Adv. KE Penetrator | 54% | -3/Testing Studied --------- Lgt. Treads | -8/Materials | Hacked Imp. Ion Engine | -8/Materials | Hacked Rocket Launcher | -8/Materials | Hacked KE Penetrator | -5/Factory | Hacked Imp. Medium Treads | -5/Factory | Hacked Hvy. Missile Launcher | -5/Factory | Hacked Railgun | -3/Research | Hacked HERF Cannon | -3/Research | Hacked Alien Tech Used ----------------- Dimensional Node Initializer Core Expander Integrated Dissipator Achievements -------------- Chop Chop Challenges ------------ None Game ------ Seed SurgeCargoBlaster Manual? 0 Play Time 04:03:16 Cumulative 2334.5 hours Start 2026.09.20 @ 21:12:14 End 2026.09.21 @ 03:09:33 Sessions 3 Manual Loads 0 Difficulty Rogue Special Mode None Game No. 1448 Rogue 1444 Adventurer 4 Explorer 0 Win Type 0 Total 341 Types 256/15/27/11/4/1/6/10/7/4 Lore% 99 Gallery% 96 Achievement% 95 Wizard Run 0 Options --------- Layout 2 ASCII 0 Keyboard 1 Movement Vi Keybinds 0 Fullscreen 0 Font 24/Terminus Map View 59x48 Zoom Use 0% Tactical HUD 1 Map Filters NONE Filters NONE Steam 1 RUN: ab7a7233-f3e8-4b7f-932c-c65f6074a82d